{"text_format":"3","workbook":"xlsx","n_sheets":4,"sheets":["ΕΚΔΗΛΩΣΕΙΣ","ΗΜΕΡΟΛΟΓΙΟ","ΕΚΔΟΣΗ ΕΚΤΥΠΩΣΗΣ","ΔΙΑΧΕΙΡΙΣΤΗΣ"],"not_rendered":{"defined_names":18},"read":"whole","date_system":"1900"}

{"sheet":"ΕΚΔΗΛΩΣΕΙΣ","index":0,"n_rows":38,"n_cols":5,"rows_kept":38}
[]
[null,"ΜΗΝΙΑΙΟΣ ΠΡΟΓΡΑΜΜΑΤΙΣΜΟΣ"]
[null,"ΕΚΔΗΛΩΣΕΩΝ ΚΟΙΝΟΤΗΤΑΣ"]
[]
[]
[]
[]
[null,"ΗΜΕΡΟΜΗΝΙΑ","ΗΜΕΡΑ","ΜΗΝΑΣ","ΟΝΟΜΑ ΕΚΔΗΛΩΣΗΣ"]
[null,"2016-07-01",{"$f":"IF(ISBLANK(tblEvents[[#This Row],[ΗΜΕΡΟΜΗΝΙΑ]]),\"\",UPPER(TEXT(tblEvents[[#This Row],[ΗΜΕΡΟΜΗΝΙΑ]],\"ηηη\")))","v":"ΠΑΡ"},{"$f":"IF(ISBLANK(tblEvents[[#This Row],[ΗΜΕΡΟΜΗΝΙΑ]]),\"\",UPPER(TEXT(tblEvents[[#This Row],[ΗΜΕΡΟΜΗΝΙΑ]],\"μμμ\")))","v":"ΙΟΥΛ"},"Φροντίδα δημοτικού κήπου"]
[null,"2016-07-01",{"$f":"IF(ISBLANK(tblEvents[[#This Row],[ΗΜΕΡΟΜΗΝΙΑ]]),\"\",UPPER(TEXT(tblEvents[[#This Row],[ΗΜΕΡΟΜΗΝΙΑ]],\"ηηη\")))","v":"ΠΑΡ"},{"$f":"IF(ISBLANK(tblEvents[[#This Row],[ΗΜΕΡΟΜΗΝΙΑ]]),\"\",UPPER(TEXT(tblEvents[[#This Row],[ΗΜΕΡΟΜΗΝΙΑ]],\"μμμ\")))","v":"ΙΟΥΛ"},"Δημοτικό συμβούλιο"]
[null,"2016-07-02",{"$f":"IF(ISBLANK(tblEvents[[#This Row],[ΗΜΕΡΟΜΗΝΙΑ]]),\"\",UPPER(TEXT(tblEvents[[#This Row],[ΗΜΕΡΟΜΗΝΙΑ]],\"ηηη\")))","v":"ΣΑΒ"},{"$f":"IF(ISBLANK(tblEvents[[#This Row],[ΗΜΕΡΟΜΗΝΙΑ]]),\"\",UPPER(TEXT(tblEvents[[#This Row],[ΗΜΕΡΟΜΗΝΙΑ]],\"μμμ\")))","v":"ΙΟΥΛ"},"Φροντίδα δημοτικού κήπου"]
[null,"2016-07-03",{"$f":"IF(ISBLANK(tblEvents[[#This Row],[ΗΜΕΡΟΜΗΝΙΑ]]),\"\",UPPER(TEXT(tblEvents[[#This Row],[ΗΜΕΡΟΜΗΝΙΑ]],\"ηηη\")))","v":"ΚΥΡ"},{"$f":"IF(ISBLANK(tblEvents[[#This Row],[ΗΜΕΡΟΜΗΝΙΑ]]),\"\",UPPER(TEXT(tblEvents[[#This Row],[ΗΜΕΡΟΜΗΝΙΑ]],\"μμμ\")))","v":"ΙΟΥΛ"},"Κινηματογραφική βραδιά στο πάρκο"]
[null,"2016-07-08",{"$f":"IF(ISBLANK(tblEvents[[#This Row],[ΗΜΕΡΟΜΗΝΙΑ]]),\"\",UPPER(TEXT(tblEvents[[#This Row],[ΗΜΕΡΟΜΗΝΙΑ]],\"ηηη\")))","v":"ΠΑΡ"},{"$f":"IF(ISBLANK(tblEvents[[#This Row],[ΗΜΕΡΟΜΗΝΙΑ]]),\"\",UPPER(TEXT(tblEvents[[#This Row],[ΗΜΕΡΟΜΗΝΙΑ]],\"μμμ\")))","v":"ΙΟΥΛ"},"Δημοτικό συμβούλιο"]
[null,"2016-07-11",{"$f":"IF(ISBLANK(tblEvents[[#This Row],[ΗΜΕΡΟΜΗΝΙΑ]]),\"\",UPPER(TEXT(tblEvents[[#This Row],[ΗΜΕΡΟΜΗΝΙΑ]],\"ηηη\")))","v":"ΔΕΥ"},{"$f":"IF(ISBLANK(tblEvents[[#This Row],[ΗΜΕΡΟΜΗΝΙΑ]]),\"\",UPPER(TEXT(tblEvents[[#This Row],[ΗΜΕΡΟΜΗΝΙΑ]],\"μμμ\")))","v":"ΙΟΥΛ"},"Γεύμα εμπορικού επιμελητηρίου"]
[null,"2016-07-12",{"$f":"IF(ISBLANK(tblEvents[[#This Row],[ΗΜΕΡΟΜΗΝΙΑ]]),\"\",UPPER(TEXT(tblEvents[[#This Row],[ΗΜΕΡΟΜΗΝΙΑ]],\"ηηη\")))","v":"ΤΡΙ"},{"$f":"IF(ISBLANK(tblEvents[[#This Row],[ΗΜΕΡΟΜΗΝΙΑ]]),\"\",UPPER(TEXT(tblEvents[[#This Row],[ΗΜΕΡΟΜΗΝΙΑ]],\"μμμ\")))","v":"ΙΟΥΛ"},"Έκθεση με αντίκες"]
[null,"2016-07-14",{"$f":"IF(ISBLANK(tblEvents[[#This Row],[ΗΜΕΡΟΜΗΝΙΑ]]),\"\",UPPER(TEXT(tblEvents[[#This Row],[ΗΜΕΡΟΜΗΝΙΑ]],\"ηηη\")))","v":"ΠΕΜ"},{"$f":"IF(ISBLANK(tblEvents[[#This Row],[ΗΜΕΡΟΜΗΝΙΑ]]),\"\",UPPER(TEXT(tblEvents[[#This Row],[ΗΜΕΡΟΜΗΝΙΑ]],\"μμμ\")))","v":"ΙΟΥΛ"},"Εργαστήριο κοινότητας"]
[null,"2016-07-15",{"$f":"IF(ISBLANK(tblEvents[[#This Row],[ΗΜΕΡΟΜΗΝΙΑ]]),\"\",UPPER(TEXT(tblEvents[[#This Row],[ΗΜΕΡΟΜΗΝΙΑ]],\"ηηη\")))","v":"ΠΑΡ"},{"$f":"IF(ISBLANK(tblEvents[[#This Row],[ΗΜΕΡΟΜΗΝΙΑ]]),\"\",UPPER(TEXT(tblEvents[[#This Row],[ΗΜΕΡΟΜΗΝΙΑ]],\"μμμ\")))","v":"ΙΟΥΛ"},"Δημοτικό συμβούλιο"]
[null,"2016-07-19",{"$f":"IF(ISBLANK(tblEvents[[#This Row],[ΗΜΕΡΟΜΗΝΙΑ]]),\"\",UPPER(TEXT(tblEvents[[#This Row],[ΗΜΕΡΟΜΗΝΙΑ]],\"ηηη\")))","v":"ΤΡΙ"},{"$f":"IF(ISBLANK(tblEvents[[#This Row],[ΗΜΕΡΟΜΗΝΙΑ]]),\"\",UPPER(TEXT(tblEvents[[#This Row],[ΗΜΕΡΟΜΗΝΙΑ]],\"μμμ\")))","v":"ΙΟΥΛ"},"Εργαστήριο στρατηγικού σχεδιασμού"]
[null,"2016-07-20",{"$f":"IF(ISBLANK(tblEvents[[#This Row],[ΗΜΕΡΟΜΗΝΙΑ]]),\"\",UPPER(TEXT(tblEvents[[#This Row],[ΗΜΕΡΟΜΗΝΙΑ]],\"ηηη\")))","v":"ΤΕΤ"},{"$f":"IF(ISBLANK(tblEvents[[#This Row],[ΗΜΕΡΟΜΗΝΙΑ]]),\"\",UPPER(TEXT(tblEvents[[#This Row],[ΗΜΕΡΟΜΗΝΙΑ]],\"μμμ\")))","v":"ΙΟΥΛ"},"Καθαρισμός πάρκου"]
[null,"2016-07-22",{"$f":"IF(ISBLANK(tblEvents[[#This Row],[ΗΜΕΡΟΜΗΝΙΑ]]),\"\",UPPER(TEXT(tblEvents[[#This Row],[ΗΜΕΡΟΜΗΝΙΑ]],\"ηηη\")))","v":"ΠΑΡ"},{"$f":"IF(ISBLANK(tblEvents[[#This Row],[ΗΜΕΡΟΜΗΝΙΑ]]),\"\",UPPER(TEXT(tblEvents[[#This Row],[ΗΜΕΡΟΜΗΝΙΑ]],\"μμμ\")))","v":"ΙΟΥΛ"},"Δημοτικό συμβούλιο"]
[null,"2016-07-26",{"$f":"IF(ISBLANK(tblEvents[[#This Row],[ΗΜΕΡΟΜΗΝΙΑ]]),\"\",UPPER(TEXT(tblEvents[[#This Row],[ΗΜΕΡΟΜΗΝΙΑ]],\"ηηη\")))","v":"ΤΡΙ"},{"$f":"IF(ISBLANK(tblEvents[[#This Row],[ΗΜΕΡΟΜΗΝΙΑ]]),\"\",UPPER(TEXT(tblEvents[[#This Row],[ΗΜΕΡΟΜΗΝΙΑ]],\"μμμ\")))","v":"ΙΟΥΛ"},"Βόλτα με περιήγηση στο κέντρο"]
[null,"2016-07-26",{"$f":"IF(ISBLANK(tblEvents[[#This Row],[ΗΜΕΡΟΜΗΝΙΑ]]),\"\",UPPER(TEXT(tblEvents[[#This Row],[ΗΜΕΡΟΜΗΝΙΑ]],\"ηηη\")))","v":"ΤΡΙ"},{"$f":"IF(ISBLANK(tblEvents[[#This Row],[ΗΜΕΡΟΜΗΝΙΑ]]),\"\",UPPER(TEXT(tblEvents[[#This Row],[ΗΜΕΡΟΜΗΝΙΑ]],\"μμμ\")))","v":"ΙΟΥΛ"},"Βόλτα στα μπαρ"]
[null,"2016-07-29",{"$f":"IF(ISBLANK(tblEvents[[#This Row],[ΗΜΕΡΟΜΗΝΙΑ]]),\"\",UPPER(TEXT(tblEvents[[#This Row],[ΗΜΕΡΟΜΗΝΙΑ]],\"ηηη\")))","v":"ΠΑΡ"},{"$f":"IF(ISBLANK(tblEvents[[#This Row],[ΗΜΕΡΟΜΗΝΙΑ]]),\"\",UPPER(TEXT(tblEvents[[#This Row],[ΗΜΕΡΟΜΗΝΙΑ]],\"μμμ\")))","v":"ΙΟΥΛ"},"Δημοτικό συμβούλιο"]
[null,"2016-08-05",{"$f":"IF(ISBLANK(tblEvents[[#This Row],[ΗΜΕΡΟΜΗΝΙΑ]]),\"\",UPPER(TEXT(tblEvents[[#This Row],[ΗΜΕΡΟΜΗΝΙΑ]],\"ηηη\")))","v":"ΠΑΡ"},{"$f":"IF(ISBLANK(tblEvents[[#This Row],[ΗΜΕΡΟΜΗΝΙΑ]]),\"\",UPPER(TEXT(tblEvents[[#This Row],[ΗΜΕΡΟΜΗΝΙΑ]],\"μμμ\")))","v":"ΑΥΓ"},"Δημοτικό συμβούλιο"]
[null,"2016-08-10",{"$f":"IF(ISBLANK(tblEvents[[#This Row],[ΗΜΕΡΟΜΗΝΙΑ]]),\"\",UPPER(TEXT(tblEvents[[#This Row],[ΗΜΕΡΟΜΗΝΙΑ]],\"ηηη\")))","v":"ΤΕΤ"},{"$f":"IF(ISBLANK(tblEvents[[#This Row],[ΗΜΕΡΟΜΗΝΙΑ]]),\"\",UPPER(TEXT(tblEvents[[#This Row],[ΗΜΕΡΟΜΗΝΙΑ]],\"μμμ\")))","v":"ΑΥΓ"},"Καθαρισμός πάρκου"]
[null,"2016-08-12",{"$f":"IF(ISBLANK(tblEvents[[#This Row],[ΗΜΕΡΟΜΗΝΙΑ]]),\"\",UPPER(TEXT(tblEvents[[#This Row],[ΗΜΕΡΟΜΗΝΙΑ]],\"ηηη\")))","v":"ΠΑΡ"},{"$f":"IF(ISBLANK(tblEvents[[#This Row],[ΗΜΕΡΟΜΗΝΙΑ]]),\"\",UPPER(TEXT(tblEvents[[#This Row],[ΗΜΕΡΟΜΗΝΙΑ]],\"μμμ\")))","v":"ΑΥΓ"},"Δημοτικό συμβούλιο"]
[null,"2016-08-13",{"$f":"IF(ISBLANK(tblEvents[[#This Row],[ΗΜΕΡΟΜΗΝΙΑ]]),\"\",UPPER(TEXT(tblEvents[[#This Row],[ΗΜΕΡΟΜΗΝΙΑ]],\"ηηη\")))","v":"ΣΑΒ"},{"$f":"IF(ISBLANK(tblEvents[[#This Row],[ΗΜΕΡΟΜΗΝΙΑ]]),\"\",UPPER(TEXT(tblEvents[[#This Row],[ΗΜΕΡΟΜΗΝΙΑ]],\"μμμ\")))","v":"ΑΥΓ"},"Φροντίδα δημοτικού κήπου"]
[null,"2016-09-01",{"$f":"IF(ISBLANK(tblEvents[[#This Row],[ΗΜΕΡΟΜΗΝΙΑ]]),\"\",UPPER(TEXT(tblEvents[[#This Row],[ΗΜΕΡΟΜΗΝΙΑ]],\"ηηη\")))","v":"ΠΕΜ"},{"$f":"IF(ISBLANK(tblEvents[[#This Row],[ΗΜΕΡΟΜΗΝΙΑ]]),\"\",UPPER(TEXT(tblEvents[[#This Row],[ΗΜΕΡΟΜΗΝΙΑ]],\"μμμ\")))","v":"ΣΕΠ"},"Επιτροπή προϋπολογισμού"]
[null,"2016-10-01",{"$f":"IF(ISBLANK(tblEvents[[#This Row],[ΗΜΕΡΟΜΗΝΙΑ]]),\"\",UPPER(TEXT(tblEvents[[#This Row],[ΗΜΕΡΟΜΗΝΙΑ]],\"ηηη\")))","v":"ΣΑΒ"},{"$f":"IF(ISBLANK(tblEvents[[#This Row],[ΗΜΕΡΟΜΗΝΙΑ]]),\"\",UPPER(TEXT(tblEvents[[#This Row],[ΗΜΕΡΟΜΗΝΙΑ]],\"μμμ\")))","v":"ΟΚΤ"},"Επιτροπή προϋπολογισμού"]
[null,"2016-11-03",{"$f":"IF(ISBLANK(tblEvents[[#This Row],[ΗΜΕΡΟΜΗΝΙΑ]]),\"\",UPPER(TEXT(tblEvents[[#This Row],[ΗΜΕΡΟΜΗΝΙΑ]],\"ηηη\")))","v":"ΠΕΜ"},{"$f":"IF(ISBLANK(tblEvents[[#This Row],[ΗΜΕΡΟΜΗΝΙΑ]]),\"\",UPPER(TEXT(tblEvents[[#This Row],[ΗΜΕΡΟΜΗΝΙΑ]],\"μμμ\")))","v":"ΝΟΕ"},"Επιτροπή προϋπολογισμού"]
[null,"2016-12-01",{"$f":"IF(ISBLANK(tblEvents[[#This Row],[ΗΜΕΡΟΜΗΝΙΑ]]),\"\",UPPER(TEXT(tblEvents[[#This Row],[ΗΜΕΡΟΜΗΝΙΑ]],\"ηηη\")))","v":"ΠΕΜ"},{"$f":"IF(ISBLANK(tblEvents[[#This Row],[ΗΜΕΡΟΜΗΝΙΑ]]),\"\",UPPER(TEXT(tblEvents[[#This Row],[ΗΜΕΡΟΜΗΝΙΑ]],\"μμμ\")))","v":"ΔΕΚ"},"Επιτροπή προϋπολογισμού"]
[null,"2017-01-01",{"$f":"IF(ISBLANK(tblEvents[[#This Row],[ΗΜΕΡΟΜΗΝΙΑ]]),\"\",UPPER(TEXT(tblEvents[[#This Row],[ΗΜΕΡΟΜΗΝΙΑ]],\"ηηη\")))","v":"ΚΥΡ"},{"$f":"IF(ISBLANK(tblEvents[[#This Row],[ΗΜΕΡΟΜΗΝΙΑ]]),\"\",UPPER(TEXT(tblEvents[[#This Row],[ΗΜΕΡΟΜΗΝΙΑ]],\"μμμ\")))","v":"ΙΑΝ"},"Επιτροπή προϋπολογισμού"]
[null,"2017-02-02",{"$f":"IF(ISBLANK(tblEvents[[#This Row],[ΗΜΕΡΟΜΗΝΙΑ]]),\"\",UPPER(TEXT(tblEvents[[#This Row],[ΗΜΕΡΟΜΗΝΙΑ]],\"ηηη\")))","v":"ΠΕΜ"},{"$f":"IF(ISBLANK(tblEvents[[#This Row],[ΗΜΕΡΟΜΗΝΙΑ]]),\"\",UPPER(TEXT(tblEvents[[#This Row],[ΗΜΕΡΟΜΗΝΙΑ]],\"μμμ\")))","v":"ΦΕΒ"},"Επιτροπή προϋπολογισμού"]
[null,"2017-03-02",{"$f":"IF(ISBLANK(tblEvents[[#This Row],[ΗΜΕΡΟΜΗΝΙΑ]]),\"\",UPPER(TEXT(tblEvents[[#This Row],[ΗΜΕΡΟΜΗΝΙΑ]],\"ηηη\")))","v":"ΠΕΜ"},{"$f":"IF(ISBLANK(tblEvents[[#This Row],[ΗΜΕΡΟΜΗΝΙΑ]]),\"\",UPPER(TEXT(tblEvents[[#This Row],[ΗΜΕΡΟΜΗΝΙΑ]],\"μμμ\")))","v":"ΜΑΡ"},"Επιτροπή προϋπολογισμού"]
[null,"2017-04-01",{"$f":"IF(ISBLANK(tblEvents[[#This Row],[ΗΜΕΡΟΜΗΝΙΑ]]),\"\",UPPER(TEXT(tblEvents[[#This Row],[ΗΜΕΡΟΜΗΝΙΑ]],\"ηηη\")))","v":"ΣΑΒ"},{"$f":"IF(ISBLANK(tblEvents[[#This Row],[ΗΜΕΡΟΜΗΝΙΑ]]),\"\",UPPER(TEXT(tblEvents[[#This Row],[ΗΜΕΡΟΜΗΝΙΑ]],\"μμμ\")))","v":"ΑΠΡ"},"Επιτροπή προϋπολογισμού"]
[null,"2017-05-01",{"$f":"IF(ISBLANK(tblEvents[[#This Row],[ΗΜΕΡΟΜΗΝΙΑ]]),\"\",UPPER(TEXT(tblEvents[[#This Row],[ΗΜΕΡΟΜΗΝΙΑ]],\"ηηη\")))","v":"ΔΕΥ"},{"$f":"IF(ISBLANK(tblEvents[[#This Row],[ΗΜΕΡΟΜΗΝΙΑ]]),\"\",UPPER(TEXT(tblEvents[[#This Row],[ΗΜΕΡΟΜΗΝΙΑ]],\"μμμ\")))","v":"ΜΑΪ"},"Επιτροπή προϋπολογισμού"]
[null,"2017-06-01",{"$f":"IF(ISBLANK(tblEvents[[#This Row],[ΗΜΕΡΟΜΗΝΙΑ]]),\"\",UPPER(TEXT(tblEvents[[#This Row],[ΗΜΕΡΟΜΗΝΙΑ]],\"ηηη\")))","v":"ΠΕΜ"},{"$f":"IF(ISBLANK(tblEvents[[#This Row],[ΗΜΕΡΟΜΗΝΙΑ]]),\"\",UPPER(TEXT(tblEvents[[#This Row],[ΗΜΕΡΟΜΗΝΙΑ]],\"μμμ\")))","v":"ΙΟΥΝ"},"Επιτροπή προϋπολογισμού"]
[null,"2017-06-02",{"$f":"IF(ISBLANK(tblEvents[[#This Row],[ΗΜΕΡΟΜΗΝΙΑ]]),\"\",UPPER(TEXT(tblEvents[[#This Row],[ΗΜΕΡΟΜΗΝΙΑ]],\"ηηη\")))","v":"ΠΑΡ"},{"$f":"IF(ISBLANK(tblEvents[[#This Row],[ΗΜΕΡΟΜΗΝΙΑ]]),\"\",UPPER(TEXT(tblEvents[[#This Row],[ΗΜΕΡΟΜΗΝΙΑ]],\"μμμ\")))","v":"ΙΟΥΝ"},"Δημοτικό συμβούλιο"]

{"sheet":"ΗΜΕΡΟΛΟΓΙΟ","index":1,"n_rows":35,"n_cols":21,"rows_kept":35,"merged":[[1,5,1,11],[30,8,34,20]]}
[]
[null,null,2016,null,null,{"$f":"LOOKUP(MonthNum,tblMonths[ΑΡΙΘΜΟΣ],tblMonths[ΜΗΝΑΣ])","v":"ΙΟΥΛΙΟΣ"}]
[null,null,7,null,null,{"$f":"DATE(ViewYear,MonthNum,1)","v":"2016-07-01"},null,null,{"$f":"WEEKDAY(StartDate)","v":6}]
[null,null,"ΔΕΥ",null,null,"ΤΡΙ",null,null,"ΤΕΤ",null,null,"ΠΕΜ",null,null,"ΠΑΡ",null,null,"ΣΑΒ",null,null,"ΚΥΡ"]
[]
[null,null,{"$f":"StartDate-(WEEKDAY(StartDate,2))+{0;1;2;3;4;5}*7 +{2,3,4,5,6,7,1}-3+COLUMN(B1)","v":"2016-06-27"},null,null,{"$f":"StartDate-(WEEKDAY(StartDate,2))+{0;1;2;3;4;5}*7 +{2,3,4,5,6,7,1}-3+COLUMN(C1)","v":"2016-06-28"},null,null,{"$f":"StartDate-(WEEKDAY(StartDate,2))+{0;1;2;3;4;5}*7 +{2,3,4,5,6,7,1}-3+COLUMN(D1)","v":"2016-06-29"},null,null,{"$f":"StartDate-(WEEKDAY(StartDate,2))+{0;1;2;3;4;5}*7 +{2,3,4,5,6,7,1}-3+COLUMN(E1)","v":"2016-06-30"},null,null,{"$f":"StartDate-(WEEKDAY(StartDate,2))+{0;1;2;3;4;5}*7 +{2,3,4,5,6,7,1}-3+COLUMN(F1)","v":"2016-07-01"},null,null,{"$f":"StartDate-(WEEKDAY(StartDate,2))+{0;1;2;3;4;5}*7 +{2,3,4,5,6,7,1}-3+COLUMN(G1)","v":"2016-07-02"},null,null,{"$f":"StartDate-(WEEKDAY(StartDate,2))+{0;1;2;3;4;5}*7 +{2,3,4,5,6,7,1}-3+COLUMN(H1)","v":"2016-07-03"}]
[null,null,{"$f":"IFERROR(INDEX(tblEvents[],SMALL(IF(Dates=C$6,ROW(Dates)),ROW(1:1))-TableRowStart,4),\"\")","v":""},null,null,{"$f":"IFERROR(INDEX(tblEvents[],SMALL(IF(Dates=F$6,ROW(Dates)),ROW(1:1))-TableRowStart,4),\"\")","v":""},null,null,{"$f":"IFERROR(INDEX(tblEvents[],SMALL(IF(Dates=I$6,ROW(Dates)),ROW(1:1))-TableRowStart,4),\"\")","v":""},null,null,{"$f":"IFERROR(INDEX(tblEvents[],SMALL(IF(Dates=L$6,ROW(Dates)),ROW(1:1))-TableRowStart,4),\"\")","v":""},null,null,{"$f":"IFERROR(INDEX(tblEvents[],SMALL(IF(Dates=O$6,ROW(Dates)),ROW(1:1))-TableRowStart,4),\"\")","v":"Φροντίδα δημοτικού κήπου"},null,null,{"$f":"IFERROR(INDEX(tblEvents[],SMALL(IF(Dates=R$6,ROW(Dates)),ROW(1:1))-TableRowStart,4),\"\")","v":"Φροντίδα δημοτικού κήπου"},null,null,{"$f":"IFERROR(INDEX(tblEvents[],SMALL(IF(Dates=U$6,ROW(Dates)),ROW(1:1))-TableRowStart,4),\"\")","v":"Κινηματογραφική βραδιά στο πάρκο"}]
[null,null,{"$f":"IFERROR(INDEX(tblEvents[],SMALL(IF(Dates=C$6,ROW(Dates)),ROW(2:2))-TableRowStart,4),\"\")","v":""},null,null,{"$f":"IFERROR(INDEX(tblEvents[],SMALL(IF(Dates=F$6,ROW(Dates)),ROW(2:2))-TableRowStart,4),\"\")","v":""},null,null,{"$f":"IFERROR(INDEX(tblEvents[],SMALL(IF(Dates=I$6,ROW(Dates)),ROW(2:2))-TableRowStart,4),\"\")","v":""},null,null,{"$f":"IFERROR(INDEX(tblEvents[],SMALL(IF(Dates=L$6,ROW(Dates)),ROW(2:2))-TableRowStart,4),\"\")","v":""},null,null,{"$f":"IFERROR(INDEX(tblEvents[],SMALL(IF(Dates=O$6,ROW(Dates)),ROW(2:2))-TableRowStart,4),\"\")","v":"Δημοτικό συμβούλιο"},null,null,{"$f":"IFERROR(INDEX(tblEvents[],SMALL(IF(Dates=R$6,ROW(Dates)),ROW(2:2))-TableRowStart,4),\"\")","v":""},null,null,{"$f":"IFERROR(INDEX(tblEvents[],SMALL(IF(Dates=U$6,ROW(Dates)),ROW(2:2))-TableRowStart,4),\"\")","v":""}]
[null,null,{"$f":"IFERROR(INDEX(tblEvents[],SMALL(IF(Dates=C$6,ROW(Dates)),ROW(3:3))-TableRowStart,4),\"\")","v":""},null,null,{"$f":"IFERROR(INDEX(tblEvents[],SMALL(IF(Dates=F$6,ROW(Dates)),ROW(3:3))-TableRowStart,4),\"\")","v":""},null,null,{"$f":"IFERROR(INDEX(tblEvents[],SMALL(IF(Dates=I$6,ROW(Dates)),ROW(3:3))-TableRowStart,4),\"\")","v":""},null,null,{"$f":"IFERROR(INDEX(tblEvents[],SMALL(IF(Dates=L$6,ROW(Dates)),ROW(3:3))-TableRowStart,4),\"\")","v":""},null,null,{"$f":"IFERROR(INDEX(tblEvents[],SMALL(IF(Dates=O$6,ROW(Dates)),ROW(3:3))-TableRowStart,4),\"\")","v":""},null,null,{"$f":"IFERROR(INDEX(tblEvents[],SMALL(IF(Dates=R$6,ROW(Dates)),ROW(3:3))-TableRowStart,4),\"\")","v":""},null,null,{"$f":"IFERROR(INDEX(tblEvents[],SMALL(IF(Dates=U$6,ROW(Dates)),ROW(3:3))-TableRowStart,4),\"\")","v":""}]
[null,null,{"$f":"IFERROR(INDEX(tblEvents[],SMALL(IF(Dates=C$6,ROW(Dates)),ROW(#REF!))-TableRowStart,4),\"\")","v":""},null,null,{"$f":"IFERROR(INDEX(tblEvents[],SMALL(IF(Dates=F$6,ROW(Dates)),ROW(#REF!))-TableRowStart,4),\"\")","v":""},null,null,{"$f":"IFERROR(INDEX(tblEvents[],SMALL(IF(Dates=I$6,ROW(Dates)),ROW(#REF!))-TableRowStart,4),\"\")","v":""},null,null,{"$f":"IFERROR(INDEX(tblEvents[],SMALL(IF(Dates=L$6,ROW(Dates)),ROW(#REF!))-TableRowStart,4),\"\")","v":""},null,null,{"$f":"IFERROR(INDEX(tblEvents[],SMALL(IF(Dates=O$6,ROW(Dates)),ROW(#REF!))-TableRowStart,4),\"\")","v":""},null,null,{"$f":"IFERROR(INDEX(tblEvents[],SMALL(IF(Dates=R$6,ROW(Dates)),ROW(#REF!))-TableRowStart,4),\"\")","v":""},null,null,{"$f":"IFERROR(INDEX(tblEvents[],SMALL(IF(Dates=U$6,ROW(Dates)),ROW(#REF!))-TableRowStart,4),\"\")","v":""}]
[null,null,{"$f":"U6+1","v":"2016-07-04"},null,null,{"$f":"C11+1","v":"2016-07-05"},null,null,{"$f":"F11+1","v":"2016-07-06"},null,null,{"$f":"I11+1","v":"2016-07-07"},null,null,{"$f":"L11+1","v":"2016-07-08"},null,null,{"$f":"O11+1","v":"2016-07-09"},null,null,{"$f":"R11+1","v":"2016-07-10"}]
[null,null,{"$f":"IFERROR(INDEX(tblEvents[],SMALL(IF(Dates=C$11,ROW(Dates)),ROW(1:1))-TableRowStart,4),\"\")","v":""},null,null,{"$f":"IFERROR(INDEX(tblEvents[],SMALL(IF(Dates=F$11,ROW(Dates)),ROW(1:1))-TableRowStart,4),\"\")","v":""},null,null,{"$f":"IFERROR(INDEX(tblEvents[],SMALL(IF(Dates=I$11,ROW(Dates)),ROW(1:1))-TableRowStart,4),\"\")","v":""},null,null,{"$f":"IFERROR(INDEX(tblEvents[],SMALL(IF(Dates=L$11,ROW(Dates)),ROW(1:1))-TableRowStart,4),\"\")","v":""},null,null,{"$f":"IFERROR(INDEX(tblEvents[],SMALL(IF(Dates=O$11,ROW(Dates)),ROW(1:1))-TableRowStart,4),\"\")","v":"Δημοτικό συμβούλιο"},null,null,{"$f":"IFERROR(INDEX(tblEvents[],SMALL(IF(Dates=R$11,ROW(Dates)),ROW(1:1))-TableRowStart,4),\"\")","v":""},null,null,{"$f":"IFERROR(INDEX(tblEvents[],SMALL(IF(Dates=U$11,ROW(Dates)),ROW(1:1))-TableRowStart,4),\"\")","v":""}]
[null,null,{"$f":"IFERROR(INDEX(tblEvents[],SMALL(IF(Dates=C$11,ROW(Dates)),ROW(2:2))-TableRowStart,4),\"\")","v":""},null,null,{"$f":"IFERROR(INDEX(tblEvents[],SMALL(IF(Dates=F$11,ROW(Dates)),ROW(2:2))-TableRowStart,4),\"\")","v":""},null,null,{"$f":"IFERROR(INDEX(tblEvents[],SMALL(IF(Dates=I$11,ROW(Dates)),ROW(2:2))-TableRowStart,4),\"\")","v":""},null,null,{"$f":"IFERROR(INDEX(tblEvents[],SMALL(IF(Dates=L$11,ROW(Dates)),ROW(2:2))-TableRowStart,4),\"\")","v":""},null,null,{"$f":"IFERROR(INDEX(tblEvents[],SMALL(IF(Dates=O$11,ROW(Dates)),ROW(2:2))-TableRowStart,4),\"\")","v":""},null,null,{"$f":"IFERROR(INDEX(tblEvents[],SMALL(IF(Dates=R$11,ROW(Dates)),ROW(2:2))-TableRowStart,4),\"\")","v":""},null,null,{"$f":"IFERROR(INDEX(tblEvents[],SMALL(IF(Dates=U$11,ROW(Dates)),ROW(2:2))-TableRowStart,4),\"\")","v":""}]
[null,null,{"$f":"IFERROR(INDEX(tblEvents[],SMALL(IF(Dates=C$11,ROW(Dates)),ROW(3:3))-TableRowStart,4),\"\")","v":""},null,null,{"$f":"IFERROR(INDEX(tblEvents[],SMALL(IF(Dates=F$11,ROW(Dates)),ROW(3:3))-TableRowStart,4),\"\")","v":""},null,null,{"$f":"IFERROR(INDEX(tblEvents[],SMALL(IF(Dates=I$11,ROW(Dates)),ROW(3:3))-TableRowStart,4),\"\")","v":""},null,null,{"$f":"IFERROR(INDEX(tblEvents[],SMALL(IF(Dates=L$11,ROW(Dates)),ROW(3:3))-TableRowStart,4),\"\")","v":""},null,null,{"$f":"IFERROR(INDEX(tblEvents[],SMALL(IF(Dates=O$11,ROW(Dates)),ROW(3:3))-TableRowStart,4),\"\")","v":""},null,null,{"$f":"IFERROR(INDEX(tblEvents[],SMALL(IF(Dates=R$11,ROW(Dates)),ROW(3:3))-TableRowStart,4),\"\")","v":""},null,null,{"$f":"IFERROR(INDEX(tblEvents[],SMALL(IF(Dates=U$11,ROW(Dates)),ROW(3:3))-TableRowStart,4),\"\")","v":""}]
[null,null,{"$f":"IFERROR(INDEX(tblEvents[],SMALL(IF(Dates=C$11,ROW(Dates)),ROW(#REF!))-TableRowStart,4),\"\")","v":""},null,null,{"$f":"IFERROR(INDEX(tblEvents[],SMALL(IF(Dates=F$11,ROW(Dates)),ROW(#REF!))-TableRowStart,4),\"\")","v":""},null,null,{"$f":"IFERROR(INDEX(tblEvents[],SMALL(IF(Dates=I$11,ROW(Dates)),ROW(#REF!))-TableRowStart,4),\"\")","v":""},null,null,{"$f":"IFERROR(INDEX(tblEvents[],SMALL(IF(Dates=L$11,ROW(Dates)),ROW(#REF!))-TableRowStart,4),\"\")","v":""},null,null,{"$f":"IFERROR(INDEX(tblEvents[],SMALL(IF(Dates=O$11,ROW(Dates)),ROW(#REF!))-TableRowStart,4),\"\")","v":""},null,null,{"$f":"IFERROR(INDEX(tblEvents[],SMALL(IF(Dates=R$11,ROW(Dates)),ROW(#REF!))-TableRowStart,4),\"\")","v":""},null,null,{"$f":"IFERROR(INDEX(tblEvents[],SMALL(IF(Dates=U$11,ROW(Dates)),ROW(#REF!))-TableRowStart,4),\"\")","v":""}]
[null,null,{"$f":"U11+1","v":"2016-07-11"},null,null,{"$f":"C16+1","v":"2016-07-12"},null,null,{"$f":"F16+1","v":"2016-07-13"},null,null,{"$f":"I16+1","v":"2016-07-14"},null,null,{"$f":"L16+1","v":"2016-07-15"},null,null,{"$f":"O16+1","v":"2016-07-16"},null,null,{"$f":"R16+1","v":"2016-07-17"}]
[null,null,{"$f":"IFERROR(INDEX(tblEvents[],SMALL(IF(Dates=C$16,ROW(Dates)),ROW(1:1))-TableRowStart,4),\"\")","v":"Γεύμα εμπορικού επιμελητηρίου"},null,null,{"$f":"IFERROR(INDEX(tblEvents[],SMALL(IF(Dates=F$16,ROW(Dates)),ROW(1:1))-TableRowStart,4),\"\")","v":"Έκθεση με αντίκες"},null,null,{"$f":"IFERROR(INDEX(tblEvents[],SMALL(IF(Dates=I$16,ROW(Dates)),ROW(1:1))-TableRowStart,4),\"\")","v":""},null,null,{"$f":"IFERROR(INDEX(tblEvents[],SMALL(IF(Dates=L$16,ROW(Dates)),ROW(1:1))-TableRowStart,4),\"\")","v":"Εργαστήριο κοινότητας"},null,null,{"$f":"IFERROR(INDEX(tblEvents[],SMALL(IF(Dates=O$16,ROW(Dates)),ROW(1:1))-TableRowStart,4),\"\")","v":"Δημοτικό συμβούλιο"},null,null,{"$f":"IFERROR(INDEX(tblEvents[],SMALL(IF(Dates=R$16,ROW(Dates)),ROW(1:1))-TableRowStart,4),\"\")","v":""},null,null,{"$f":"IFERROR(INDEX(tblEvents[],SMALL(IF(Dates=U$16,ROW(Dates)),ROW(1:1))-TableRowStart,4),\"\")","v":""}]
[null,null,{"$f":"IFERROR(INDEX(tblEvents[],SMALL(IF(Dates=C$16,ROW(Dates)),ROW(2:2))-TableRowStart,4),\"\")","v":""},null,null,{"$f":"IFERROR(INDEX(tblEvents[],SMALL(IF(Dates=F$16,ROW(Dates)),ROW(2:2))-TableRowStart,4),\"\")","v":""},null,null,{"$f":"IFERROR(INDEX(tblEvents[],SMALL(IF(Dates=I$16,ROW(Dates)),ROW(2:2))-TableRowStart,4),\"\")","v":""},null,null,{"$f":"IFERROR(INDEX(tblEvents[],SMALL(IF(Dates=L$16,ROW(Dates)),ROW(2:2))-TableRowStart,4),\"\")","v":""},null,null,{"$f":"IFERROR(INDEX(tblEvents[],SMALL(IF(Dates=O$16,ROW(Dates)),ROW(2:2))-TableRowStart,4),\"\")","v":""},null,null,{"$f":"IFERROR(INDEX(tblEvents[],SMALL(IF(Dates=R$16,ROW(Dates)),ROW(2:2))-TableRowStart,4),\"\")","v":""},null,null,{"$f":"IFERROR(INDEX(tblEvents[],SMALL(IF(Dates=U$16,ROW(Dates)),ROW(2:2))-TableRowStart,4),\"\")","v":""}]
[null,null,{"$f":"IFERROR(INDEX(tblEvents[],SMALL(IF(Dates=C$16,ROW(Dates)),ROW(3:3))-TableRowStart,4),\"\")","v":""},null,null,{"$f":"IFERROR(INDEX(tblEvents[],SMALL(IF(Dates=F$16,ROW(Dates)),ROW(3:3))-TableRowStart,4),\"\")","v":""},null,null,{"$f":"IFERROR(INDEX(tblEvents[],SMALL(IF(Dates=I$16,ROW(Dates)),ROW(3:3))-TableRowStart,4),\"\")","v":""},null,null,{"$f":"IFERROR(INDEX(tblEvents[],SMALL(IF(Dates=L$16,ROW(Dates)),ROW(3:3))-TableRowStart,4),\"\")","v":""},null,null,{"$f":"IFERROR(INDEX(tblEvents[],SMALL(IF(Dates=O$16,ROW(Dates)),ROW(3:3))-TableRowStart,4),\"\")","v":""},null,null,{"$f":"IFERROR(INDEX(tblEvents[],SMALL(IF(Dates=R$16,ROW(Dates)),ROW(3:3))-TableRowStart,4),\"\")","v":""},null,null,{"$f":"IFERROR(INDEX(tblEvents[],SMALL(IF(Dates=U$16,ROW(Dates)),ROW(3:3))-TableRowStart,4),\"\")","v":""}]
[null,null,{"$f":"IFERROR(INDEX(tblEvents[],SMALL(IF(Dates=C$16,ROW(Dates)),ROW(#REF!))-TableRowStart,4),\"\")","v":""},null,null,{"$f":"IFERROR(INDEX(tblEvents[],SMALL(IF(Dates=F$16,ROW(Dates)),ROW(#REF!))-TableRowStart,4),\"\")","v":""},null,null,{"$f":"IFERROR(INDEX(tblEvents[],SMALL(IF(Dates=I$16,ROW(Dates)),ROW(#REF!))-TableRowStart,4),\"\")","v":""},null,null,{"$f":"IFERROR(INDEX(tblEvents[],SMALL(IF(Dates=L$16,ROW(Dates)),ROW(#REF!))-TableRowStart,4),\"\")","v":""},null,null,{"$f":"IFERROR(INDEX(tblEvents[],SMALL(IF(Dates=O$16,ROW(Dates)),ROW(#REF!))-TableRowStart,4),\"\")","v":""},null,null,{"$f":"IFERROR(INDEX(tblEvents[],SMALL(IF(Dates=R$16,ROW(Dates)),ROW(#REF!))-TableRowStart,4),\"\")","v":""},null,null,{"$f":"IFERROR(INDEX(tblEvents[],SMALL(IF(Dates=U$16,ROW(Dates)),ROW(#REF!))-TableRowStart,4),\"\")","v":""}]
[null,null,{"$f":"U16+1","v":"2016-07-18"},null,null,{"$f":"C21+1","v":"2016-07-19"},null,null,{"$f":"F21+1","v":"2016-07-20"},null,null,{"$f":"I21+1","v":"2016-07-21"},null,null,{"$f":"L21+1","v":"2016-07-22"},null,null,{"$f":"O21+1","v":"2016-07-23"},null,null,{"$f":"R21+1","v":"2016-07-24"}]
[null,null,{"$f":"IFERROR(INDEX(tblEvents[],SMALL(IF(Dates=C$21,ROW(Dates)),ROW(1:1))-TableRowStart,4),\"\")","v":""},null,null,{"$f":"IFERROR(INDEX(tblEvents[],SMALL(IF(Dates=F$21,ROW(Dates)),ROW(1:1))-TableRowStart,4),\"\")","v":"Εργαστήριο στρατηγικού σχεδιασμού"},null,null,{"$f":"IFERROR(INDEX(tblEvents[],SMALL(IF(Dates=I$21,ROW(Dates)),ROW(1:1))-TableRowStart,4),\"\")","v":"Καθαρισμός πάρκου"},null,null,{"$f":"IFERROR(INDEX(tblEvents[],SMALL(IF(Dates=L$21,ROW(Dates)),ROW(1:1))-TableRowStart,4),\"\")","v":""},null,null,{"$f":"IFERROR(INDEX(tblEvents[],SMALL(IF(Dates=O$21,ROW(Dates)),ROW(1:1))-TableRowStart,4),\"\")","v":"Δημοτικό συμβούλιο"},null,null,{"$f":"IFERROR(INDEX(tblEvents[],SMALL(IF(Dates=R$21,ROW(Dates)),ROW(1:1))-TableRowStart,4),\"\")","v":""},null,null,{"$f":"IFERROR(INDEX(tblEvents[],SMALL(IF(Dates=U$21,ROW(Dates)),ROW(1:1))-TableRowStart,4),\"\")","v":""}]
[null,null,{"$f":"IFERROR(INDEX(tblEvents[],SMALL(IF(Dates=C$21,ROW(Dates)),ROW(2:2))-TableRowStart,4),\"\")","v":""},null,null,{"$f":"IFERROR(INDEX(tblEvents[],SMALL(IF(Dates=F$21,ROW(Dates)),ROW(2:2))-TableRowStart,4),\"\")","v":""},null,null,{"$f":"IFERROR(INDEX(tblEvents[],SMALL(IF(Dates=I$21,ROW(Dates)),ROW(2:2))-TableRowStart,4),\"\")","v":""},null,null,{"$f":"IFERROR(INDEX(tblEvents[],SMALL(IF(Dates=L$21,ROW(Dates)),ROW(2:2))-TableRowStart,4),\"\")","v":""},null,null,{"$f":"IFERROR(INDEX(tblEvents[],SMALL(IF(Dates=O$21,ROW(Dates)),ROW(2:2))-TableRowStart,4),\"\")","v":""},null,null,{"$f":"IFERROR(INDEX(tblEvents[],SMALL(IF(Dates=R$21,ROW(Dates)),ROW(2:2))-TableRowStart,4),\"\")","v":""},null,null,{"$f":"IFERROR(INDEX(tblEvents[],SMALL(IF(Dates=U$21,ROW(Dates)),ROW(2:2))-TableRowStart,4),\"\")","v":""}]
[null,null,{"$f":"IFERROR(INDEX(tblEvents[],SMALL(IF(Dates=C$21,ROW(Dates)),ROW(3:3))-TableRowStart,4),\"\")","v":""},null,null,{"$f":"IFERROR(INDEX(tblEvents[],SMALL(IF(Dates=F$21,ROW(Dates)),ROW(3:3))-TableRowStart,4),\"\")","v":""},null,null,{"$f":"IFERROR(INDEX(tblEvents[],SMALL(IF(Dates=I$21,ROW(Dates)),ROW(3:3))-TableRowStart,4),\"\")","v":""},null,null,{"$f":"IFERROR(INDEX(tblEvents[],SMALL(IF(Dates=L$21,ROW(Dates)),ROW(3:3))-TableRowStart,4),\"\")","v":""},null,null,{"$f":"IFERROR(INDEX(tblEvents[],SMALL(IF(Dates=O$21,ROW(Dates)),ROW(3:3))-TableRowStart,4),\"\")","v":""},null,null,{"$f":"IFERROR(INDEX(tblEvents[],SMALL(IF(Dates=R$21,ROW(Dates)),ROW(3:3))-TableRowStart,4),\"\")","v":""},null,null,{"$f":"IFERROR(INDEX(tblEvents[],SMALL(IF(Dates=U$21,ROW(Dates)),ROW(3:3))-TableRowStart,4),\"\")","v":""}]
[null,null,{"$f":"IFERROR(INDEX(tblEvents[],SMALL(IF(Dates=C$21,ROW(Dates)),ROW(#REF!))-TableRowStart,4),\"\")","v":""},null,null,{"$f":"IFERROR(INDEX(tblEvents[],SMALL(IF(Dates=F$21,ROW(Dates)),ROW(#REF!))-TableRowStart,4),\"\")","v":""},null,null,{"$f":"IFERROR(INDEX(tblEvents[],SMALL(IF(Dates=I$21,ROW(Dates)),ROW(#REF!))-TableRowStart,4),\"\")","v":""},null,null,{"$f":"IFERROR(INDEX(tblEvents[],SMALL(IF(Dates=L$21,ROW(Dates)),ROW(#REF!))-TableRowStart,4),\"\")","v":""},null,null,{"$f":"IFERROR(INDEX(tblEvents[],SMALL(IF(Dates=O$21,ROW(Dates)),ROW(#REF!))-TableRowStart,4),\"\")","v":""},null,null,{"$f":"IFERROR(INDEX(tblEvents[],SMALL(IF(Dates=R$21,ROW(Dates)),ROW(#REF!))-TableRowStart,4),\"\")","v":""},null,null,{"$f":"IFERROR(INDEX(tblEvents[],SMALL(IF(Dates=U$21,ROW(Dates)),ROW(#REF!))-TableRowStart,4),\"\")","v":""}]
[null,null,{"$f":"U21+1","v":"2016-07-25"},null,null,{"$f":"C26+1","v":"2016-07-26"},null,null,{"$f":"F26+1","v":"2016-07-27"},null,null,{"$f":"I26+1","v":"2016-07-28"},null,null,{"$f":"L26+1","v":"2016-07-29"},null,null,{"$f":"O26+1","v":"2016-07-30"},null,null,{"$f":"R26+1","v":"2016-07-31"}]
[null,null,{"$f":"IFERROR(INDEX(tblEvents[],SMALL(IF(Dates=C$26,ROW(Dates)),ROW(1:1))-TableRowStart,4),\"\")","v":""},null,null,{"$f":"IFERROR(INDEX(tblEvents[],SMALL(IF(Dates=F$26,ROW(Dates)),ROW(1:1))-TableRowStart,4),\"\")","v":"Βόλτα με περιήγηση στο κέντρο"},null,null,{"$f":"IFERROR(INDEX(tblEvents[],SMALL(IF(Dates=I$26,ROW(Dates)),ROW(1:1))-TableRowStart,4),\"\")","v":""},null,null,{"$f":"IFERROR(INDEX(tblEvents[],SMALL(IF(Dates=L$26,ROW(Dates)),ROW(1:1))-TableRowStart,4),\"\")","v":""},null,null,{"$f":"IFERROR(INDEX(tblEvents[],SMALL(IF(Dates=O$26,ROW(Dates)),ROW(1:1))-TableRowStart,4),\"\")","v":"Δημοτικό συμβούλιο"},null,null,{"$f":"IFERROR(INDEX(tblEvents[],SMALL(IF(Dates=R$26,ROW(Dates)),ROW(1:1))-TableRowStart,4),\"\")","v":""},null,null,{"$f":"IFERROR(INDEX(tblEvents[],SMALL(IF(Dates=U$26,ROW(Dates)),ROW(1:1))-TableRowStart,4),\"\")","v":""}]
[null,null,{"$f":"IFERROR(INDEX(tblEvents[],SMALL(IF(Dates=C$26,ROW(Dates)),ROW(2:2))-TableRowStart,4),\"\")","v":""},null,null,{"$f":"IFERROR(INDEX(tblEvents[],SMALL(IF(Dates=F$26,ROW(Dates)),ROW(2:2))-TableRowStart,4),\"\")","v":"Βόλτα στα μπαρ"},null,null,{"$f":"IFERROR(INDEX(tblEvents[],SMALL(IF(Dates=I$26,ROW(Dates)),ROW(2:2))-TableRowStart,4),\"\")","v":""},null,null,{"$f":"IFERROR(INDEX(tblEvents[],SMALL(IF(Dates=L$26,ROW(Dates)),ROW(2:2))-TableRowStart,4),\"\")","v":""},null,null,{"$f":"IFERROR(INDEX(tblEvents[],SMALL(IF(Dates=O$26,ROW(Dates)),ROW(2:2))-TableRowStart,4),\"\")","v":""},null,null,{"$f":"IFERROR(INDEX(tblEvents[],SMALL(IF(Dates=R$26,ROW(Dates)),ROW(2:2))-TableRowStart,4),\"\")","v":""},null,null,{"$f":"IFERROR(INDEX(tblEvents[],SMALL(IF(Dates=U$26,ROW(Dates)),ROW(2:2))-TableRowStart,4),\"\")","v":""}]
[null,null,{"$f":"IFERROR(INDEX(tblEvents[],SMALL(IF(Dates=C$26,ROW(Dates)),ROW(3:3))-TableRowStart,4),\"\")","v":""},null,null,{"$f":"IFERROR(INDEX(tblEvents[],SMALL(IF(Dates=F$26,ROW(Dates)),ROW(3:3))-TableRowStart,4),\"\")","v":""},null,null,{"$f":"IFERROR(INDEX(tblEvents[],SMALL(IF(Dates=I$26,ROW(Dates)),ROW(3:3))-TableRowStart,4),\"\")","v":""},null,null,{"$f":"IFERROR(INDEX(tblEvents[],SMALL(IF(Dates=L$26,ROW(Dates)),ROW(3:3))-TableRowStart,4),\"\")","v":""},null,null,{"$f":"IFERROR(INDEX(tblEvents[],SMALL(IF(Dates=O$26,ROW(Dates)),ROW(3:3))-TableRowStart,4),\"\")","v":""},null,null,{"$f":"IFERROR(INDEX(tblEvents[],SMALL(IF(Dates=R$26,ROW(Dates)),ROW(3:3))-TableRowStart,4),\"\")","v":""},null,null,{"$f":"IFERROR(INDEX(tblEvents[],SMALL(IF(Dates=U$26,ROW(Dates)),ROW(3:3))-TableRowStart,4),\"\")","v":""}]
[null,null,{"$f":"IFERROR(INDEX(tblEvents[],SMALL(IF(Dates=C$26,ROW(Dates)),ROW(#REF!))-TableRowStart,4),\"\")","v":""},null,null,{"$f":"IFERROR(INDEX(tblEvents[],SMALL(IF(Dates=F$26,ROW(Dates)),ROW(#REF!))-TableRowStart,4),\"\")","v":""},null,null,{"$f":"IFERROR(INDEX(tblEvents[],SMALL(IF(Dates=I$26,ROW(Dates)),ROW(#REF!))-TableRowStart,4),\"\")","v":""},null,null,{"$f":"IFERROR(INDEX(tblEvents[],SMALL(IF(Dates=L$26,ROW(Dates)),ROW(#REF!))-TableRowStart,4),\"\")","v":""},null,null,{"$f":"IFERROR(INDEX(tblEvents[],SMALL(IF(Dates=O$26,ROW(Dates)),ROW(#REF!))-TableRowStart,4),\"\")","v":""},null,null,{"$f":"IFERROR(INDEX(tblEvents[],SMALL(IF(Dates=R$26,ROW(Dates)),ROW(#REF!))-TableRowStart,4),\"\")","v":""},null,null,{"$f":"IFERROR(INDEX(tblEvents[],SMALL(IF(Dates=U$26,ROW(Dates)),ROW(#REF!))-TableRowStart,4),\"\")","v":""}]
[null,null,{"$f":"U26+1","v":"2016-08-01"},null,null,{"$f":"C31+1","v":"2016-08-02"},null,null,"ΣΗΜΕΙΩΣΕΙΣ:"]
[null,null,{"$f":"IFERROR(INDEX(tblEvents[],SMALL(IF(Dates=C$31,ROW(Dates)),ROW(1:1))-TableRowStart,4),\"\")","v":""},null,null,{"$f":"IFERROR(INDEX(tblEvents[],SMALL(IF(Dates=F$31,ROW(Dates)),ROW(1:1))-TableRowStart,4),\"\")","v":""}]
[null,null,{"$f":"IFERROR(INDEX(tblEvents[],SMALL(IF(Dates=C$31,ROW(Dates)),ROW(2:2))-TableRowStart,4),\"\")","v":""},null,null,{"$f":"IFERROR(INDEX(tblEvents[],SMALL(IF(Dates=F$31,ROW(Dates)),ROW(2:2))-TableRowStart,4),\"\")","v":""}]
[null,null,{"$f":"IFERROR(INDEX(tblEvents[],SMALL(IF(Dates=C$31,ROW(Dates)),ROW(3:3))-TableRowStart,4),\"\")","v":""},null,null,{"$f":"IFERROR(INDEX(tblEvents[],SMALL(IF(Dates=F$31,ROW(Dates)),ROW(3:3))-TableRowStart,4),\"\")","v":""}]
[null,null,{"$f":"IFERROR(INDEX(tblEvents[],SMALL(IF(Dates=C$31,ROW(Dates)),ROW(#REF!))-TableRowStart,4),\"\")","v":""},null,null,{"$f":"IFERROR(INDEX(tblEvents[],SMALL(IF(Dates=F$31,ROW(Dates)),ROW(#REF!))-TableRowStart,4),\"\")","v":""}]

{"sheet":"ΕΚΔΟΣΗ ΕΚΤΥΠΩΣΗΣ","index":2,"n_rows":35,"n_cols":21,"rows_kept":35,"merged":[[1,5,1,11],[30,8,34,20]]}
[]
[null,null,{"$f":"ViewYear","v":2016},null,null,{"$f":"ViewMonth","v":"ΙΟΥΛΙΟΣ"},{"$f":"ΗΜΕΡΟΛΟΓΙΟ!G2","v":0},{"$f":"ΗΜΕΡΟΛΟΓΙΟ!H2","v":0},{"$f":"ΗΜΕΡΟΛΟΓΙΟ!I2","v":0},{"$f":"ΗΜΕΡΟΛΟΓΙΟ!J2","v":0},{"$f":"ΗΜΕΡΟΛΟΓΙΟ!K2","v":0},{"$f":"ΗΜΕΡΟΛΟΓΙΟ!L2","v":0}]
[]
[null,null,"ΔΕΥ",null,null,"ΤΡΙ",null,null,"ΤΕΤ",null,null,"ΠΕΜ",null,null,"ΠΑΡ",null,null,"ΣΑΒ",null,null,"ΚΥΡ"]
[]
[null,null,{"$f":"ΗΜΕΡΟΛΟΓΙΟ!C6","v":"2016-06-27"},{"$f":"ΗΜΕΡΟΛΟΓΙΟ!D6","v":0},{"$f":"ΗΜΕΡΟΛΟΓΙΟ!E6","v":0},{"$f":"ΗΜΕΡΟΛΟΓΙΟ!F6","v":"2016-06-28"},{"$f":"ΗΜΕΡΟΛΟΓΙΟ!G6","v":0},{"$f":"ΗΜΕΡΟΛΟΓΙΟ!H6","v":0},{"$f":"ΗΜΕΡΟΛΟΓΙΟ!I6","v":"2016-06-29"},{"$f":"ΗΜΕΡΟΛΟΓΙΟ!J6","v":0},{"$f":"ΗΜΕΡΟΛΟΓΙΟ!K6","v":0},{"$f":"ΗΜΕΡΟΛΟΓΙΟ!L6","v":"2016-06-30"},{"$f":"ΗΜΕΡΟΛΟΓΙΟ!M6","v":0},{"$f":"ΗΜΕΡΟΛΟΓΙΟ!N6","v":0},{"$f":"ΗΜΕΡΟΛΟΓΙΟ!O6","v":"2016-07-01"},{"$f":"ΗΜΕΡΟΛΟΓΙΟ!P6","v":0},{"$f":"ΗΜΕΡΟΛΟΓΙΟ!Q6","v":0},{"$f":"ΗΜΕΡΟΛΟΓΙΟ!R6","v":"2016-07-02"},{"$f":"ΗΜΕΡΟΛΟΓΙΟ!S6","v":0},{"$f":"ΗΜΕΡΟΛΟΓΙΟ!T6","v":0},{"$f":"ΗΜΕΡΟΛΟΓΙΟ!U6","v":"2016-07-03"}]
[null,null,{"$f":"ΗΜΕΡΟΛΟΓΙΟ!C7","v":""},{"$f":"ΗΜΕΡΟΛΟΓΙΟ!D7","v":0},{"$f":"ΗΜΕΡΟΛΟΓΙΟ!E7","v":0},{"$f":"ΗΜΕΡΟΛΟΓΙΟ!F7","v":""},{"$f":"ΗΜΕΡΟΛΟΓΙΟ!G7","v":0},{"$f":"ΗΜΕΡΟΛΟΓΙΟ!H7","v":0},{"$f":"ΗΜΕΡΟΛΟΓΙΟ!I7","v":""},{"$f":"ΗΜΕΡΟΛΟΓΙΟ!J7","v":0},{"$f":"ΗΜΕΡΟΛΟΓΙΟ!K7","v":0},{"$f":"ΗΜΕΡΟΛΟΓΙΟ!L7","v":""},{"$f":"ΗΜΕΡΟΛΟΓΙΟ!M7","v":0},{"$f":"ΗΜΕΡΟΛΟΓΙΟ!N7","v":0},{"$f":"ΗΜΕΡΟΛΟΓΙΟ!O7","v":"Φροντίδα δημοτικού κήπου"},{"$f":"ΗΜΕΡΟΛΟΓΙΟ!P7","v":0},{"$f":"ΗΜΕΡΟΛΟΓΙΟ!Q7","v":0},{"$f":"ΗΜΕΡΟΛΟΓΙΟ!R7","v":"Φροντίδα δημοτικού κήπου"},{"$f":"ΗΜΕΡΟΛΟΓΙΟ!S7","v":0},{"$f":"ΗΜΕΡΟΛΟΓΙΟ!T7","v":0},{"$f":"ΗΜΕΡΟΛΟΓΙΟ!U7","v":"Κινηματογραφική βραδιά στο πάρκο"}]
[null,null,{"$f":"ΗΜΕΡΟΛΟΓΙΟ!C8","v":""},{"$f":"ΗΜΕΡΟΛΟΓΙΟ!D8","v":"00:00:00"},{"$f":"ΗΜΕΡΟΛΟΓΙΟ!E8","v":"00:00:00"},{"$f":"ΗΜΕΡΟΛΟΓΙΟ!F8","v":""},{"$f":"ΗΜΕΡΟΛΟΓΙΟ!G8","v":"00:00:00"},{"$f":"ΗΜΕΡΟΛΟΓΙΟ!H8","v":"00:00:00"},{"$f":"ΗΜΕΡΟΛΟΓΙΟ!I8","v":""},{"$f":"ΗΜΕΡΟΛΟΓΙΟ!J8","v":"00:00:00"},{"$f":"ΗΜΕΡΟΛΟΓΙΟ!K8","v":"00:00:00"},{"$f":"ΗΜΕΡΟΛΟΓΙΟ!L8","v":""},{"$f":"ΗΜΕΡΟΛΟΓΙΟ!M8","v":"00:00:00"},{"$f":"ΗΜΕΡΟΛΟΓΙΟ!N8","v":"00:00:00"},{"$f":"ΗΜΕΡΟΛΟΓΙΟ!O8","v":"Δημοτικό συμβούλιο"},{"$f":"ΗΜΕΡΟΛΟΓΙΟ!P8","v":"00:00:00"},{"$f":"ΗΜΕΡΟΛΟΓΙΟ!Q8","v":"00:00:00"},{"$f":"ΗΜΕΡΟΛΟΓΙΟ!R8","v":""},{"$f":"ΗΜΕΡΟΛΟΓΙΟ!S8","v":"00:00:00"},{"$f":"ΗΜΕΡΟΛΟΓΙΟ!T8","v":"00:00:00"},{"$f":"ΗΜΕΡΟΛΟΓΙΟ!U8","v":""}]
[null,null,{"$f":"ΗΜΕΡΟΛΟΓΙΟ!C9","v":""},{"$f":"ΗΜΕΡΟΛΟΓΙΟ!D9","v":0},{"$f":"ΗΜΕΡΟΛΟΓΙΟ!E9","v":0},{"$f":"ΗΜΕΡΟΛΟΓΙΟ!F9","v":""},{"$f":"ΗΜΕΡΟΛΟΓΙΟ!G9","v":0},{"$f":"ΗΜΕΡΟΛΟΓΙΟ!H9","v":0},{"$f":"ΗΜΕΡΟΛΟΓΙΟ!I9","v":""},{"$f":"ΗΜΕΡΟΛΟΓΙΟ!J9","v":0},{"$f":"ΗΜΕΡΟΛΟΓΙΟ!K9","v":0},{"$f":"ΗΜΕΡΟΛΟΓΙΟ!L9","v":""},{"$f":"ΗΜΕΡΟΛΟΓΙΟ!M9","v":0},{"$f":"ΗΜΕΡΟΛΟΓΙΟ!N9","v":0},{"$f":"ΗΜΕΡΟΛΟΓΙΟ!O9","v":""},{"$f":"ΗΜΕΡΟΛΟΓΙΟ!P9","v":0},{"$f":"ΗΜΕΡΟΛΟΓΙΟ!Q9","v":0},{"$f":"ΗΜΕΡΟΛΟΓΙΟ!R9","v":""},{"$f":"ΗΜΕΡΟΛΟΓΙΟ!S9","v":0},{"$f":"ΗΜΕΡΟΛΟΓΙΟ!T9","v":0},{"$f":"ΗΜΕΡΟΛΟΓΙΟ!U9","v":""}]
[null,null,{"$f":"ΗΜΕΡΟΛΟΓΙΟ!C10","v":""},{"$f":"ΗΜΕΡΟΛΟΓΙΟ!D10","v":0},{"$f":"ΗΜΕΡΟΛΟΓΙΟ!E10","v":0},{"$f":"ΗΜΕΡΟΛΟΓΙΟ!F10","v":""},{"$f":"ΗΜΕΡΟΛΟΓΙΟ!G10","v":0},{"$f":"ΗΜΕΡΟΛΟΓΙΟ!H10","v":0},{"$f":"ΗΜΕΡΟΛΟΓΙΟ!I10","v":""},{"$f":"ΗΜΕΡΟΛΟΓΙΟ!J10","v":0},{"$f":"ΗΜΕΡΟΛΟΓΙΟ!K10","v":0},{"$f":"ΗΜΕΡΟΛΟΓΙΟ!L10","v":""},{"$f":"ΗΜΕΡΟΛΟΓΙΟ!M10","v":0},{"$f":"ΗΜΕΡΟΛΟΓΙΟ!N10","v":0},{"$f":"ΗΜΕΡΟΛΟΓΙΟ!O10","v":""},{"$f":"ΗΜΕΡΟΛΟΓΙΟ!P10","v":0},{"$f":"ΗΜΕΡΟΛΟΓΙΟ!Q10","v":0},{"$f":"ΗΜΕΡΟΛΟΓΙΟ!R10","v":""},{"$f":"ΗΜΕΡΟΛΟΓΙΟ!S10","v":0},{"$f":"ΗΜΕΡΟΛΟΓΙΟ!T10","v":0},{"$f":"ΗΜΕΡΟΛΟΓΙΟ!U10","v":""}]
[null,null,{"$f":"ΗΜΕΡΟΛΟΓΙΟ!C11","v":"2016-07-04"},{"$f":"ΗΜΕΡΟΛΟΓΙΟ!D11","v":0},{"$f":"ΗΜΕΡΟΛΟΓΙΟ!E11","v":0},{"$f":"ΗΜΕΡΟΛΟΓΙΟ!F11","v":"2016-07-05"},{"$f":"ΗΜΕΡΟΛΟΓΙΟ!G11","v":0},{"$f":"ΗΜΕΡΟΛΟΓΙΟ!H11","v":0},{"$f":"ΗΜΕΡΟΛΟΓΙΟ!I11","v":"2016-07-06"},{"$f":"ΗΜΕΡΟΛΟΓΙΟ!J11","v":0},{"$f":"ΗΜΕΡΟΛΟΓΙΟ!K11","v":0},{"$f":"ΗΜΕΡΟΛΟΓΙΟ!L11","v":"2016-07-07"},{"$f":"ΗΜΕΡΟΛΟΓΙΟ!M11","v":0},{"$f":"ΗΜΕΡΟΛΟΓΙΟ!N11","v":0},{"$f":"ΗΜΕΡΟΛΟΓΙΟ!O11","v":"2016-07-08"},{"$f":"ΗΜΕΡΟΛΟΓΙΟ!P11","v":0},{"$f":"ΗΜΕΡΟΛΟΓΙΟ!Q11","v":0},{"$f":"ΗΜΕΡΟΛΟΓΙΟ!R11","v":"2016-07-09"},{"$f":"ΗΜΕΡΟΛΟΓΙΟ!S11","v":0},{"$f":"ΗΜΕΡΟΛΟΓΙΟ!T11","v":0},{"$f":"ΗΜΕΡΟΛΟΓΙΟ!U11","v":"2016-07-10"}]
[null,null,{"$f":"ΗΜΕΡΟΛΟΓΙΟ!C12","v":""},{"$f":"ΗΜΕΡΟΛΟΓΙΟ!D12","v":0},{"$f":"ΗΜΕΡΟΛΟΓΙΟ!E12","v":0},{"$f":"ΗΜΕΡΟΛΟΓΙΟ!F12","v":""},{"$f":"ΗΜΕΡΟΛΟΓΙΟ!G12","v":0},{"$f":"ΗΜΕΡΟΛΟΓΙΟ!H12","v":0},{"$f":"ΗΜΕΡΟΛΟΓΙΟ!I12","v":""},{"$f":"ΗΜΕΡΟΛΟΓΙΟ!J12","v":0},{"$f":"ΗΜΕΡΟΛΟΓΙΟ!K12","v":0},{"$f":"ΗΜΕΡΟΛΟΓΙΟ!L12","v":""},{"$f":"ΗΜΕΡΟΛΟΓΙΟ!M12","v":0},{"$f":"ΗΜΕΡΟΛΟΓΙΟ!N12","v":0},{"$f":"ΗΜΕΡΟΛΟΓΙΟ!O12","v":"Δημοτικό συμβούλιο"},{"$f":"ΗΜΕΡΟΛΟΓΙΟ!P12","v":0},{"$f":"ΗΜΕΡΟΛΟΓΙΟ!Q12","v":0},{"$f":"ΗΜΕΡΟΛΟΓΙΟ!R12","v":""},{"$f":"ΗΜΕΡΟΛΟΓΙΟ!S12","v":0},{"$f":"ΗΜΕΡΟΛΟΓΙΟ!T12","v":0},{"$f":"ΗΜΕΡΟΛΟΓΙΟ!U12","v":""}]
[null,null,{"$f":"ΗΜΕΡΟΛΟΓΙΟ!C13","v":""},{"$f":"ΗΜΕΡΟΛΟΓΙΟ!D13","v":0},{"$f":"ΗΜΕΡΟΛΟΓΙΟ!E13","v":0},{"$f":"ΗΜΕΡΟΛΟΓΙΟ!F13","v":""},{"$f":"ΗΜΕΡΟΛΟΓΙΟ!G13","v":0},{"$f":"ΗΜΕΡΟΛΟΓΙΟ!H13","v":0},{"$f":"ΗΜΕΡΟΛΟΓΙΟ!I13","v":""},{"$f":"ΗΜΕΡΟΛΟΓΙΟ!J13","v":0},{"$f":"ΗΜΕΡΟΛΟΓΙΟ!K13","v":0},{"$f":"ΗΜΕΡΟΛΟΓΙΟ!L13","v":""},{"$f":"ΗΜΕΡΟΛΟΓΙΟ!M13","v":0},{"$f":"ΗΜΕΡΟΛΟΓΙΟ!N13","v":0},{"$f":"ΗΜΕΡΟΛΟΓΙΟ!O13","v":""},{"$f":"ΗΜΕΡΟΛΟΓΙΟ!P13","v":0},{"$f":"ΗΜΕΡΟΛΟΓΙΟ!Q13","v":0},{"$f":"ΗΜΕΡΟΛΟΓΙΟ!R13","v":""},{"$f":"ΗΜΕΡΟΛΟΓΙΟ!S13","v":0},{"$f":"ΗΜΕΡΟΛΟΓΙΟ!T13","v":0},{"$f":"ΗΜΕΡΟΛΟΓΙΟ!U13","v":""}]
[null,null,{"$f":"ΗΜΕΡΟΛΟΓΙΟ!C14","v":""},{"$f":"ΗΜΕΡΟΛΟΓΙΟ!D14","v":0},{"$f":"ΗΜΕΡΟΛΟΓΙΟ!E14","v":0},{"$f":"ΗΜΕΡΟΛΟΓΙΟ!F14","v":""},{"$f":"ΗΜΕΡΟΛΟΓΙΟ!G14","v":0},{"$f":"ΗΜΕΡΟΛΟΓΙΟ!H14","v":0},{"$f":"ΗΜΕΡΟΛΟΓΙΟ!I14","v":""},{"$f":"ΗΜΕΡΟΛΟΓΙΟ!J14","v":0},{"$f":"ΗΜΕΡΟΛΟΓΙΟ!K14","v":0},{"$f":"ΗΜΕΡΟΛΟΓΙΟ!L14","v":""},{"$f":"ΗΜΕΡΟΛΟΓΙΟ!M14","v":0},{"$f":"ΗΜΕΡΟΛΟΓΙΟ!N14","v":0},{"$f":"ΗΜΕΡΟΛΟΓΙΟ!O14","v":""},{"$f":"ΗΜΕΡΟΛΟΓΙΟ!P14","v":0},{"$f":"ΗΜΕΡΟΛΟΓΙΟ!Q14","v":0},{"$f":"ΗΜΕΡΟΛΟΓΙΟ!R14","v":""},{"$f":"ΗΜΕΡΟΛΟΓΙΟ!S14","v":0},{"$f":"ΗΜΕΡΟΛΟΓΙΟ!T14","v":0},{"$f":"ΗΜΕΡΟΛΟΓΙΟ!U14","v":""}]
[null,null,{"$f":"ΗΜΕΡΟΛΟΓΙΟ!C15","v":""},{"$f":"ΗΜΕΡΟΛΟΓΙΟ!D15","v":0},{"$f":"ΗΜΕΡΟΛΟΓΙΟ!E15","v":0},{"$f":"ΗΜΕΡΟΛΟΓΙΟ!F15","v":""},{"$f":"ΗΜΕΡΟΛΟΓΙΟ!G15","v":0},{"$f":"ΗΜΕΡΟΛΟΓΙΟ!H15","v":0},{"$f":"ΗΜΕΡΟΛΟΓΙΟ!I15","v":""},{"$f":"ΗΜΕΡΟΛΟΓΙΟ!J15","v":0},{"$f":"ΗΜΕΡΟΛΟΓΙΟ!K15","v":0},{"$f":"ΗΜΕΡΟΛΟΓΙΟ!L15","v":""},{"$f":"ΗΜΕΡΟΛΟΓΙΟ!M15","v":0},{"$f":"ΗΜΕΡΟΛΟΓΙΟ!N15","v":0},{"$f":"ΗΜΕΡΟΛΟΓΙΟ!O15","v":""},{"$f":"ΗΜΕΡΟΛΟΓΙΟ!P15","v":0},{"$f":"ΗΜΕΡΟΛΟΓΙΟ!Q15","v":0},{"$f":"ΗΜΕΡΟΛΟΓΙΟ!R15","v":""},{"$f":"ΗΜΕΡΟΛΟΓΙΟ!S15","v":0},{"$f":"ΗΜΕΡΟΛΟΓΙΟ!T15","v":0},{"$f":"ΗΜΕΡΟΛΟΓΙΟ!U15","v":""}]
[null,null,{"$f":"ΗΜΕΡΟΛΟΓΙΟ!C16","v":"2016-07-11"},{"$f":"ΗΜΕΡΟΛΟΓΙΟ!D16","v":0},{"$f":"ΗΜΕΡΟΛΟΓΙΟ!E16","v":0},{"$f":"ΗΜΕΡΟΛΟΓΙΟ!F16","v":"2016-07-12"},{"$f":"ΗΜΕΡΟΛΟΓΙΟ!G16","v":0},{"$f":"ΗΜΕΡΟΛΟΓΙΟ!H16","v":0},{"$f":"ΗΜΕΡΟΛΟΓΙΟ!I16","v":"2016-07-13"},{"$f":"ΗΜΕΡΟΛΟΓΙΟ!J16","v":0},{"$f":"ΗΜΕΡΟΛΟΓΙΟ!K16","v":0},{"$f":"ΗΜΕΡΟΛΟΓΙΟ!L16","v":"2016-07-14"},{"$f":"ΗΜΕΡΟΛΟΓΙΟ!M16","v":0},{"$f":"ΗΜΕΡΟΛΟΓΙΟ!N16","v":0},{"$f":"ΗΜΕΡΟΛΟΓΙΟ!O16","v":"2016-07-15"},{"$f":"ΗΜΕΡΟΛΟΓΙΟ!P16","v":0},{"$f":"ΗΜΕΡΟΛΟΓΙΟ!Q16","v":0},{"$f":"ΗΜΕΡΟΛΟΓΙΟ!R16","v":"2016-07-16"},{"$f":"ΗΜΕΡΟΛΟΓΙΟ!S16","v":0},{"$f":"ΗΜΕΡΟΛΟΓΙΟ!T16","v":0},{"$f":"ΗΜΕΡΟΛΟΓΙΟ!U16","v":"2016-07-17"}]
[null,null,{"$f":"ΗΜΕΡΟΛΟΓΙΟ!C17","v":"Γεύμα εμπορικού επιμελητηρίου"},{"$f":"ΗΜΕΡΟΛΟΓΙΟ!D17","v":0},{"$f":"ΗΜΕΡΟΛΟΓΙΟ!E17","v":0},{"$f":"ΗΜΕΡΟΛΟΓΙΟ!F17","v":"Έκθεση με αντίκες"},{"$f":"ΗΜΕΡΟΛΟΓΙΟ!G17","v":0},{"$f":"ΗΜΕΡΟΛΟΓΙΟ!H17","v":0},{"$f":"ΗΜΕΡΟΛΟΓΙΟ!I17","v":""},{"$f":"ΗΜΕΡΟΛΟΓΙΟ!J17","v":0},{"$f":"ΗΜΕΡΟΛΟΓΙΟ!K17","v":0},{"$f":"ΗΜΕΡΟΛΟΓΙΟ!L17","v":"Εργαστήριο κοινότητας"},{"$f":"ΗΜΕΡΟΛΟΓΙΟ!M17","v":0},{"$f":"ΗΜΕΡΟΛΟΓΙΟ!N17","v":0},{"$f":"ΗΜΕΡΟΛΟΓΙΟ!O17","v":"Δημοτικό συμβούλιο"},{"$f":"ΗΜΕΡΟΛΟΓΙΟ!P17","v":0},{"$f":"ΗΜΕΡΟΛΟΓΙΟ!Q17","v":0},{"$f":"ΗΜΕΡΟΛΟΓΙΟ!R17","v":""},{"$f":"ΗΜΕΡΟΛΟΓΙΟ!S17","v":0},{"$f":"ΗΜΕΡΟΛΟΓΙΟ!T17","v":0},{"$f":"ΗΜΕΡΟΛΟΓΙΟ!U17","v":""}]
[null,null,{"$f":"ΗΜΕΡΟΛΟΓΙΟ!C18","v":""},{"$f":"ΗΜΕΡΟΛΟΓΙΟ!D18","v":0},{"$f":"ΗΜΕΡΟΛΟΓΙΟ!E18","v":0},{"$f":"ΗΜΕΡΟΛΟΓΙΟ!F18","v":""},{"$f":"ΗΜΕΡΟΛΟΓΙΟ!G18","v":0},{"$f":"ΗΜΕΡΟΛΟΓΙΟ!H18","v":0},{"$f":"ΗΜΕΡΟΛΟΓΙΟ!I18","v":""},{"$f":"ΗΜΕΡΟΛΟΓΙΟ!J18","v":0},{"$f":"ΗΜΕΡΟΛΟΓΙΟ!K18","v":0},{"$f":"ΗΜΕΡΟΛΟΓΙΟ!L18","v":""},{"$f":"ΗΜΕΡΟΛΟΓΙΟ!M18","v":0},{"$f":"ΗΜΕΡΟΛΟΓΙΟ!N18","v":0},{"$f":"ΗΜΕΡΟΛΟΓΙΟ!O18","v":""},{"$f":"ΗΜΕΡΟΛΟΓΙΟ!P18","v":0},{"$f":"ΗΜΕΡΟΛΟΓΙΟ!Q18","v":0},{"$f":"ΗΜΕΡΟΛΟΓΙΟ!R18","v":""},{"$f":"ΗΜΕΡΟΛΟΓΙΟ!S18","v":0},{"$f":"ΗΜΕΡΟΛΟΓΙΟ!T18","v":0},{"$f":"ΗΜΕΡΟΛΟΓΙΟ!U18","v":""}]
[null,null,{"$f":"ΗΜΕΡΟΛΟΓΙΟ!C19","v":""},{"$f":"ΗΜΕΡΟΛΟΓΙΟ!D19","v":0},{"$f":"ΗΜΕΡΟΛΟΓΙΟ!E19","v":0},{"$f":"ΗΜΕΡΟΛΟΓΙΟ!F19","v":""},{"$f":"ΗΜΕΡΟΛΟΓΙΟ!G19","v":0},{"$f":"ΗΜΕΡΟΛΟΓΙΟ!H19","v":0},{"$f":"ΗΜΕΡΟΛΟΓΙΟ!I19","v":""},{"$f":"ΗΜΕΡΟΛΟΓΙΟ!J19","v":0},{"$f":"ΗΜΕΡΟΛΟΓΙΟ!K19","v":0},{"$f":"ΗΜΕΡΟΛΟΓΙΟ!L19","v":""},{"$f":"ΗΜΕΡΟΛΟΓΙΟ!M19","v":0},{"$f":"ΗΜΕΡΟΛΟΓΙΟ!N19","v":0},{"$f":"ΗΜΕΡΟΛΟΓΙΟ!O19","v":""},{"$f":"ΗΜΕΡΟΛΟΓΙΟ!P19","v":0},{"$f":"ΗΜΕΡΟΛΟΓΙΟ!Q19","v":0},{"$f":"ΗΜΕΡΟΛΟΓΙΟ!R19","v":""},{"$f":"ΗΜΕΡΟΛΟΓΙΟ!S19","v":0},{"$f":"ΗΜΕΡΟΛΟΓΙΟ!T19","v":0},{"$f":"ΗΜΕΡΟΛΟΓΙΟ!U19","v":""}]
[null,null,{"$f":"ΗΜΕΡΟΛΟΓΙΟ!C20","v":""},{"$f":"ΗΜΕΡΟΛΟΓΙΟ!D20","v":0},{"$f":"ΗΜΕΡΟΛΟΓΙΟ!E20","v":0},{"$f":"ΗΜΕΡΟΛΟΓΙΟ!F20","v":""},{"$f":"ΗΜΕΡΟΛΟΓΙΟ!G20","v":0},{"$f":"ΗΜΕΡΟΛΟΓΙΟ!H20","v":0},{"$f":"ΗΜΕΡΟΛΟΓΙΟ!I20","v":""},{"$f":"ΗΜΕΡΟΛΟΓΙΟ!J20","v":0},{"$f":"ΗΜΕΡΟΛΟΓΙΟ!K20","v":0},{"$f":"ΗΜΕΡΟΛΟΓΙΟ!L20","v":""},{"$f":"ΗΜΕΡΟΛΟΓΙΟ!M20","v":0},{"$f":"ΗΜΕΡΟΛΟΓΙΟ!N20","v":0},{"$f":"ΗΜΕΡΟΛΟΓΙΟ!O20","v":""},{"$f":"ΗΜΕΡΟΛΟΓΙΟ!P20","v":0},{"$f":"ΗΜΕΡΟΛΟΓΙΟ!Q20","v":0},{"$f":"ΗΜΕΡΟΛΟΓΙΟ!R20","v":""},{"$f":"ΗΜΕΡΟΛΟΓΙΟ!S20","v":0},{"$f":"ΗΜΕΡΟΛΟΓΙΟ!T20","v":0},{"$f":"ΗΜΕΡΟΛΟΓΙΟ!U20","v":""}]
[null,null,{"$f":"ΗΜΕΡΟΛΟΓΙΟ!C21","v":"2016-07-18"},{"$f":"ΗΜΕΡΟΛΟΓΙΟ!D21","v":0},{"$f":"ΗΜΕΡΟΛΟΓΙΟ!E21","v":0},{"$f":"ΗΜΕΡΟΛΟΓΙΟ!F21","v":"2016-07-19"},{"$f":"ΗΜΕΡΟΛΟΓΙΟ!G21","v":0},{"$f":"ΗΜΕΡΟΛΟΓΙΟ!H21","v":0},{"$f":"ΗΜΕΡΟΛΟΓΙΟ!I21","v":"2016-07-20"},{"$f":"ΗΜΕΡΟΛΟΓΙΟ!J21","v":0},{"$f":"ΗΜΕΡΟΛΟΓΙΟ!K21","v":0},{"$f":"ΗΜΕΡΟΛΟΓΙΟ!L21","v":"2016-07-21"},{"$f":"ΗΜΕΡΟΛΟΓΙΟ!M21","v":0},{"$f":"ΗΜΕΡΟΛΟΓΙΟ!N21","v":0},{"$f":"ΗΜΕΡΟΛΟΓΙΟ!O21","v":"2016-07-22"},{"$f":"ΗΜΕΡΟΛΟΓΙΟ!P21","v":0},{"$f":"ΗΜΕΡΟΛΟΓΙΟ!Q21","v":0},{"$f":"ΗΜΕΡΟΛΟΓΙΟ!R21","v":"2016-07-23"},{"$f":"ΗΜΕΡΟΛΟΓΙΟ!S21","v":0},{"$f":"ΗΜΕΡΟΛΟΓΙΟ!T21","v":0},{"$f":"ΗΜΕΡΟΛΟΓΙΟ!U21","v":"2016-07-24"}]
[null,null,{"$f":"ΗΜΕΡΟΛΟΓΙΟ!C22","v":""},{"$f":"ΗΜΕΡΟΛΟΓΙΟ!D22","v":0},{"$f":"ΗΜΕΡΟΛΟΓΙΟ!E22","v":0},{"$f":"ΗΜΕΡΟΛΟΓΙΟ!F22","v":"Εργαστήριο στρατηγικού σχεδιασμού"},{"$f":"ΗΜΕΡΟΛΟΓΙΟ!G22","v":0},{"$f":"ΗΜΕΡΟΛΟΓΙΟ!H22","v":0},{"$f":"ΗΜΕΡΟΛΟΓΙΟ!I22","v":"Καθαρισμός πάρκου"},{"$f":"ΗΜΕΡΟΛΟΓΙΟ!J22","v":0},{"$f":"ΗΜΕΡΟΛΟΓΙΟ!K22","v":0},{"$f":"ΗΜΕΡΟΛΟΓΙΟ!L22","v":""},{"$f":"ΗΜΕΡΟΛΟΓΙΟ!M22","v":0},{"$f":"ΗΜΕΡΟΛΟΓΙΟ!N22","v":0},{"$f":"ΗΜΕΡΟΛΟΓΙΟ!O22","v":"Δημοτικό συμβούλιο"},{"$f":"ΗΜΕΡΟΛΟΓΙΟ!P22","v":0},{"$f":"ΗΜΕΡΟΛΟΓΙΟ!Q22","v":0},{"$f":"ΗΜΕΡΟΛΟΓΙΟ!R22","v":""},{"$f":"ΗΜΕΡΟΛΟΓΙΟ!S22","v":0},{"$f":"ΗΜΕΡΟΛΟΓΙΟ!T22","v":0},{"$f":"ΗΜΕΡΟΛΟΓΙΟ!U22","v":""}]
[null,null,{"$f":"ΗΜΕΡΟΛΟΓΙΟ!C23","v":""},{"$f":"ΗΜΕΡΟΛΟΓΙΟ!D23","v":0},{"$f":"ΗΜΕΡΟΛΟΓΙΟ!E23","v":0},{"$f":"ΗΜΕΡΟΛΟΓΙΟ!F23","v":""},{"$f":"ΗΜΕΡΟΛΟΓΙΟ!G23","v":0},{"$f":"ΗΜΕΡΟΛΟΓΙΟ!H23","v":0},{"$f":"ΗΜΕΡΟΛΟΓΙΟ!I23","v":""},{"$f":"ΗΜΕΡΟΛΟΓΙΟ!J23","v":0},{"$f":"ΗΜΕΡΟΛΟΓΙΟ!K23","v":0},{"$f":"ΗΜΕΡΟΛΟΓΙΟ!L23","v":""},{"$f":"ΗΜΕΡΟΛΟΓΙΟ!M23","v":0},{"$f":"ΗΜΕΡΟΛΟΓΙΟ!N23","v":0},{"$f":"ΗΜΕΡΟΛΟΓΙΟ!O23","v":""},{"$f":"ΗΜΕΡΟΛΟΓΙΟ!P23","v":0},{"$f":"ΗΜΕΡΟΛΟΓΙΟ!Q23","v":0},{"$f":"ΗΜΕΡΟΛΟΓΙΟ!R23","v":""},{"$f":"ΗΜΕΡΟΛΟΓΙΟ!S23","v":0},{"$f":"ΗΜΕΡΟΛΟΓΙΟ!T23","v":0},{"$f":"ΗΜΕΡΟΛΟΓΙΟ!U23","v":""}]
[null,null,{"$f":"ΗΜΕΡΟΛΟΓΙΟ!C24","v":""},{"$f":"ΗΜΕΡΟΛΟΓΙΟ!D24","v":0},{"$f":"ΗΜΕΡΟΛΟΓΙΟ!E24","v":0},{"$f":"ΗΜΕΡΟΛΟΓΙΟ!F24","v":""},{"$f":"ΗΜΕΡΟΛΟΓΙΟ!G24","v":0},{"$f":"ΗΜΕΡΟΛΟΓΙΟ!H24","v":0},{"$f":"ΗΜΕΡΟΛΟΓΙΟ!I24","v":""},{"$f":"ΗΜΕΡΟΛΟΓΙΟ!J24","v":0},{"$f":"ΗΜΕΡΟΛΟΓΙΟ!K24","v":0},{"$f":"ΗΜΕΡΟΛΟΓΙΟ!L24","v":""},{"$f":"ΗΜΕΡΟΛΟΓΙΟ!M24","v":0},{"$f":"ΗΜΕΡΟΛΟΓΙΟ!N24","v":0},{"$f":"ΗΜΕΡΟΛΟΓΙΟ!O24","v":""},{"$f":"ΗΜΕΡΟΛΟΓΙΟ!P24","v":0},{"$f":"ΗΜΕΡΟΛΟΓΙΟ!Q24","v":0},{"$f":"ΗΜΕΡΟΛΟΓΙΟ!R24","v":""},{"$f":"ΗΜΕΡΟΛΟΓΙΟ!S24","v":0},{"$f":"ΗΜΕΡΟΛΟΓΙΟ!T24","v":0},{"$f":"ΗΜΕΡΟΛΟΓΙΟ!U24","v":""}]
[null,null,{"$f":"ΗΜΕΡΟΛΟΓΙΟ!C25","v":""},{"$f":"ΗΜΕΡΟΛΟΓΙΟ!D25","v":0},{"$f":"ΗΜΕΡΟΛΟΓΙΟ!E25","v":0},{"$f":"ΗΜΕΡΟΛΟΓΙΟ!F25","v":""},{"$f":"ΗΜΕΡΟΛΟΓΙΟ!G25","v":0},{"$f":"ΗΜΕΡΟΛΟΓΙΟ!H25","v":0},{"$f":"ΗΜΕΡΟΛΟΓΙΟ!I25","v":""},{"$f":"ΗΜΕΡΟΛΟΓΙΟ!J25","v":0},{"$f":"ΗΜΕΡΟΛΟΓΙΟ!K25","v":0},{"$f":"ΗΜΕΡΟΛΟΓΙΟ!L25","v":""},{"$f":"ΗΜΕΡΟΛΟΓΙΟ!M25","v":0},{"$f":"ΗΜΕΡΟΛΟΓΙΟ!N25","v":0},{"$f":"ΗΜΕΡΟΛΟΓΙΟ!O25","v":""},{"$f":"ΗΜΕΡΟΛΟΓΙΟ!P25","v":0},{"$f":"ΗΜΕΡΟΛΟΓΙΟ!Q25","v":0},{"$f":"ΗΜΕΡΟΛΟΓΙΟ!R25","v":""},{"$f":"ΗΜΕΡΟΛΟΓΙΟ!S25","v":0},{"$f":"ΗΜΕΡΟΛΟΓΙΟ!T25","v":0},{"$f":"ΗΜΕΡΟΛΟΓΙΟ!U25","v":""}]
[null,null,{"$f":"ΗΜΕΡΟΛΟΓΙΟ!C26","v":"2016-07-25"},{"$f":"ΗΜΕΡΟΛΟΓΙΟ!D26","v":0},{"$f":"ΗΜΕΡΟΛΟΓΙΟ!E26","v":0},{"$f":"ΗΜΕΡΟΛΟΓΙΟ!F26","v":"2016-07-26"},{"$f":"ΗΜΕΡΟΛΟΓΙΟ!G26","v":0},{"$f":"ΗΜΕΡΟΛΟΓΙΟ!H26","v":0},{"$f":"ΗΜΕΡΟΛΟΓΙΟ!I26","v":"2016-07-27"},{"$f":"ΗΜΕΡΟΛΟΓΙΟ!J26","v":0},{"$f":"ΗΜΕΡΟΛΟΓΙΟ!K26","v":0},{"$f":"ΗΜΕΡΟΛΟΓΙΟ!L26","v":"2016-07-28"},{"$f":"ΗΜΕΡΟΛΟΓΙΟ!M26","v":0},{"$f":"ΗΜΕΡΟΛΟΓΙΟ!N26","v":0},{"$f":"ΗΜΕΡΟΛΟΓΙΟ!O26","v":"2016-07-29"},{"$f":"ΗΜΕΡΟΛΟΓΙΟ!P26","v":0},{"$f":"ΗΜΕΡΟΛΟΓΙΟ!Q26","v":0},{"$f":"ΗΜΕΡΟΛΟΓΙΟ!R26","v":"2016-07-30"},{"$f":"ΗΜΕΡΟΛΟΓΙΟ!S26","v":0},{"$f":"ΗΜΕΡΟΛΟΓΙΟ!T26","v":0},{"$f":"ΗΜΕΡΟΛΟΓΙΟ!U26","v":"2016-07-31"}]
[null,null,{"$f":"ΗΜΕΡΟΛΟΓΙΟ!C27","v":""},{"$f":"ΗΜΕΡΟΛΟΓΙΟ!D27","v":0},{"$f":"ΗΜΕΡΟΛΟΓΙΟ!E27","v":0},{"$f":"ΗΜΕΡΟΛΟΓΙΟ!F27","v":"Βόλτα με περιήγηση στο κέντρο"},{"$f":"ΗΜΕΡΟΛΟΓΙΟ!G27","v":0},{"$f":"ΗΜΕΡΟΛΟΓΙΟ!H27","v":0},{"$f":"ΗΜΕΡΟΛΟΓΙΟ!I27","v":""},{"$f":"ΗΜΕΡΟΛΟΓΙΟ!J27","v":0},{"$f":"ΗΜΕΡΟΛΟΓΙΟ!K27","v":0},{"$f":"ΗΜΕΡΟΛΟΓΙΟ!L27","v":""},{"$f":"ΗΜΕΡΟΛΟΓΙΟ!M27","v":0},{"$f":"ΗΜΕΡΟΛΟΓΙΟ!N27","v":0},{"$f":"ΗΜΕΡΟΛΟΓΙΟ!O27","v":"Δημοτικό συμβούλιο"},{"$f":"ΗΜΕΡΟΛΟΓΙΟ!P27","v":0},{"$f":"ΗΜΕΡΟΛΟΓΙΟ!Q27","v":0},{"$f":"ΗΜΕΡΟΛΟΓΙΟ!R27","v":""},{"$f":"ΗΜΕΡΟΛΟΓΙΟ!S27","v":0},{"$f":"ΗΜΕΡΟΛΟΓΙΟ!T27","v":0},{"$f":"ΗΜΕΡΟΛΟΓΙΟ!U27","v":""}]
[null,null,{"$f":"ΗΜΕΡΟΛΟΓΙΟ!C28","v":""},{"$f":"ΗΜΕΡΟΛΟΓΙΟ!D28","v":0},{"$f":"ΗΜΕΡΟΛΟΓΙΟ!E28","v":0},{"$f":"ΗΜΕΡΟΛΟΓΙΟ!F28","v":"Βόλτα στα μπαρ"},{"$f":"ΗΜΕΡΟΛΟΓΙΟ!G28","v":0},{"$f":"ΗΜΕΡΟΛΟΓΙΟ!H28","v":0},{"$f":"ΗΜΕΡΟΛΟΓΙΟ!I28","v":""},{"$f":"ΗΜΕΡΟΛΟΓΙΟ!J28","v":0},{"$f":"ΗΜΕΡΟΛΟΓΙΟ!K28","v":0},{"$f":"ΗΜΕΡΟΛΟΓΙΟ!L28","v":""},{"$f":"ΗΜΕΡΟΛΟΓΙΟ!M28","v":0},{"$f":"ΗΜΕΡΟΛΟΓΙΟ!N28","v":0},{"$f":"ΗΜΕΡΟΛΟΓΙΟ!O28","v":""},{"$f":"ΗΜΕΡΟΛΟΓΙΟ!P28","v":0},{"$f":"ΗΜΕΡΟΛΟΓΙΟ!Q28","v":0},{"$f":"ΗΜΕΡΟΛΟΓΙΟ!R28","v":""},{"$f":"ΗΜΕΡΟΛΟΓΙΟ!S28","v":0},{"$f":"ΗΜΕΡΟΛΟΓΙΟ!T28","v":0},{"$f":"ΗΜΕΡΟΛΟΓΙΟ!U28","v":""}]
[null,null,{"$f":"ΗΜΕΡΟΛΟΓΙΟ!C29","v":""},{"$f":"ΗΜΕΡΟΛΟΓΙΟ!D29","v":0},{"$f":"ΗΜΕΡΟΛΟΓΙΟ!E29","v":0},{"$f":"ΗΜΕΡΟΛΟΓΙΟ!F29","v":""},{"$f":"ΗΜΕΡΟΛΟΓΙΟ!G29","v":0},{"$f":"ΗΜΕΡΟΛΟΓΙΟ!H29","v":0},{"$f":"ΗΜΕΡΟΛΟΓΙΟ!I29","v":""},{"$f":"ΗΜΕΡΟΛΟΓΙΟ!J29","v":0},{"$f":"ΗΜΕΡΟΛΟΓΙΟ!K29","v":0},{"$f":"ΗΜΕΡΟΛΟΓΙΟ!L29","v":""},{"$f":"ΗΜΕΡΟΛΟΓΙΟ!M29","v":0},{"$f":"ΗΜΕΡΟΛΟΓΙΟ!N29","v":0},{"$f":"ΗΜΕΡΟΛΟΓΙΟ!O29","v":""},{"$f":"ΗΜΕΡΟΛΟΓΙΟ!P29","v":0},{"$f":"ΗΜΕΡΟΛΟΓΙΟ!Q29","v":0},{"$f":"ΗΜΕΡΟΛΟΓΙΟ!R29","v":""},{"$f":"ΗΜΕΡΟΛΟΓΙΟ!S29","v":0},{"$f":"ΗΜΕΡΟΛΟΓΙΟ!T29","v":0},{"$f":"ΗΜΕΡΟΛΟΓΙΟ!U29","v":""}]
[null,null,{"$f":"ΗΜΕΡΟΛΟΓΙΟ!C30","v":""},{"$f":"ΗΜΕΡΟΛΟΓΙΟ!D30","v":0},{"$f":"ΗΜΕΡΟΛΟΓΙΟ!E30","v":0},{"$f":"ΗΜΕΡΟΛΟΓΙΟ!F30","v":""},{"$f":"ΗΜΕΡΟΛΟΓΙΟ!G30","v":0},{"$f":"ΗΜΕΡΟΛΟΓΙΟ!H30","v":0},{"$f":"ΗΜΕΡΟΛΟΓΙΟ!I30","v":""},{"$f":"ΗΜΕΡΟΛΟΓΙΟ!J30","v":0},{"$f":"ΗΜΕΡΟΛΟΓΙΟ!K30","v":0},{"$f":"ΗΜΕΡΟΛΟΓΙΟ!L30","v":""},{"$f":"ΗΜΕΡΟΛΟΓΙΟ!M30","v":0},{"$f":"ΗΜΕΡΟΛΟΓΙΟ!N30","v":0},{"$f":"ΗΜΕΡΟΛΟΓΙΟ!O30","v":""},{"$f":"ΗΜΕΡΟΛΟΓΙΟ!P30","v":0},{"$f":"ΗΜΕΡΟΛΟΓΙΟ!Q30","v":0},{"$f":"ΗΜΕΡΟΛΟΓΙΟ!R30","v":""},{"$f":"ΗΜΕΡΟΛΟΓΙΟ!S30","v":0},{"$f":"ΗΜΕΡΟΛΟΓΙΟ!T30","v":0},{"$f":"ΗΜΕΡΟΛΟΓΙΟ!U30","v":""}]
[null,null,{"$f":"ΗΜΕΡΟΛΟΓΙΟ!C31","v":"2016-08-01"},{"$f":"ΗΜΕΡΟΛΟΓΙΟ!D31","v":0},{"$f":"ΗΜΕΡΟΛΟΓΙΟ!E31","v":0},{"$f":"ΗΜΕΡΟΛΟΓΙΟ!F31","v":"2016-08-02"},null,null,{"$f":"ΗΜΕΡΟΛΟΓΙΟ!I31","v":"ΣΗΜΕΙΩΣΕΙΣ:"}]
[null,null,{"$f":"ΗΜΕΡΟΛΟΓΙΟ!C32","v":""},{"$f":"ΗΜΕΡΟΛΟΓΙΟ!D32","v":0},{"$f":"ΗΜΕΡΟΛΟΓΙΟ!E32","v":0},{"$f":"ΗΜΕΡΟΛΟΓΙΟ!F32","v":""}]
[null,null,{"$f":"ΗΜΕΡΟΛΟΓΙΟ!C33","v":""},{"$f":"ΗΜΕΡΟΛΟΓΙΟ!D33","v":0},{"$f":"ΗΜΕΡΟΛΟΓΙΟ!E33","v":0},{"$f":"ΗΜΕΡΟΛΟΓΙΟ!F33","v":""}]
[null,null,{"$f":"ΗΜΕΡΟΛΟΓΙΟ!C34","v":""},{"$f":"ΗΜΕΡΟΛΟΓΙΟ!D34","v":0},{"$f":"ΗΜΕΡΟΛΟΓΙΟ!E34","v":0},{"$f":"ΗΜΕΡΟΛΟΓΙΟ!F34","v":""}]
[null,null,{"$f":"ΗΜΕΡΟΛΟΓΙΟ!C35","v":""},{"$f":"ΗΜΕΡΟΛΟΓΙΟ!D35","v":0},{"$f":"ΗΜΕΡΟΛΟΓΙΟ!E35","v":0},{"$f":"ΗΜΕΡΟΛΟΓΙΟ!F35","v":""}]

{"sheet":"ΔΙΑΧΕΙΡΙΣΤΗΣ","index":3,"n_rows":14,"n_cols":3,"rows_kept":14,"hidden":true}
[]
[null,"ΜΗΝΑΣ","ΑΡΙΘΜΟΣ"]
[null,"ΙΑΝΟΥΑΡΙΟΣ",1]
[null,"ΦΕΒΡΟΥΑΡΙΟΣ",2]
[null,"ΜΑΡΤΙΟΣ",3]
[null,"ΑΠΡΙΛΙΟΣ",4]
[null,"ΜΑΪΟΣ",5]
[null,"ΙΟΥΝΙΟΣ",6]
[null,"ΙΟΥΛΙΟΣ",7]
[null,"ΑΥΓΟΥΣΤΟΣ",8]
[null,"ΣΕΠΤΕΜΒΡΙΟΣ",9]
[null,"ΟΚΤΩΒΡΙΟΣ",10]
[null,"ΝΟΕΜΒΡΙΟΣ",11]
[null,"ΔΕΚΕΜΒΡΙΟΣ",12]